Workbook

Sheet 优秀学生干部
A1: 中国石油大学2022-2023学年学生组织优秀学生干部
A2: 校级学生组织和校级学生社团由校团委负责评定。校级学生组织根据组织人数确定名额，数量为4—8人不等，校级学生社团优干指标标准根据2022-2023学年社团考核结果执行：五星级社团4人、四星级社团2人、三星级社团1人，二星、一星社团无。院级学生组织和社团由院团委负责评定。具体评定条件参见《学生手册》。被评为优秀学生干部的，在“志愿北京”中登记志愿时长不得少于20小时。团委所评定优干指标，不能与学工处下发到班级的优干指标兼得，否则浪费指标,不予补报。
A3: 序号 | B3: 姓名 | C3: 学号 | D3: 学历（本/研） | E3: 学院/研究院（全称） | F3: 专业年级 | G3: 组织名称 | H3: 备注
A4: 1 | B4: 王栋 | C4: 2021010020 | D4: 本 | E4: 地球科学学院 | F4: 资源勘查工程21级 | G4: 校团委办公室
A5: 2 | B5: 陈雨萌 | C5: 2022012276 | D5: 本 | E5: 碳中和未来技术学院 | F5: 碳储科学与工程22级 | G5: 校团委办公室
A6: 3 | B6: 丁彬 | C6: 2022010838 | D6: 本 | E6: 机械与储运工程学院 | F6: 机械设计制造及自动化22级 | G6: 校团委办公室
A7: 4 | B7: 江锦欣 | C7: 2022010422 | D7: 本 | E7: 化学工程与环境学院 | F7: 化学工程与工艺22级 | G7: 校团委办公室
A8: 5 | B8: 夏小迪 | C8: 2022011888 | D8: 本 | E8: 经济管理学院 | F8: 能源经济22级 | G8: 校团委办公室
A9: 6 | B9: 孙嘉璐 | C9: 2021012142 | D9: 本 | E9: 马克思主义学院 | F9: 思政21级 | G9: 校团委组织部
A10: 7 | B10: 李思妍 | C10: 2021010527 | D10: 本 | E10: 化学工程与环境学院 | F10: 环境工程21级 | G10: 校团委组织部
A11: 8 | B11: 田川 | C11: 2022011101 | D11: 本 | E11: 信息科学与工程学院/人工智能学院 | F11: 自动化22级 | G11: 校团委组织部
A12: 9 | B12: 曾睎 | C12: 2022011399 | D12: 本 | E12: 碳中和未来技术学院 | F12: 储能22级 | G12: 校团委组织部
A13: 10 | B13: 冯麟喧 | C13: 2022011059 | D13: 本 | E13: 地球物理学院 | F13: 地物22级 | G13: 校团委组织部
A14: 11 | B14: 李昱萱 | C14: 2021011939 | D14: 本 | E14: 经济管理学院 | F14: 能源经济21级 | G14: 校团委宣传部
A15: 12 | B15: 杨振宇 | C15: 2022011876 | D15: 本 | E15: 经济管理学院 | F15: 金融22级 | G15: 校团委宣传部
A16: 13 | B16: 贡钰淋 | C16: 2022011972 | D16: 本 | E16: 经济管理学院 | F16: 会计22级 | G16: 校团委宣传部
A17: 14 | B17: 张澍宇 | C17: 2022010942 | D17: 本 | E17: 机械与储运工程学院 | F17: 机械22级 | G17: 校团委宣传部
A18: 15 | B18: 黄睿 | C18: 2022011998 | D18: 本 | E18: 碳中和未来技术学院 | F18: 储能22级 | G18: 校团委宣传部
A19: 16 | B19: 彭美林 | C19: 2022011188 | D19: 本 | E19: 安全与海洋工程学院 | F19: 安全工程22级 | G19: 校团委宣传部
A20: 17 | B20: 李千卉 | C20: 2022012117 | D20: 本 | E20: 马克思主义学院 | F20: 思政22级 | G20: 校团委宣传部
A21: 18 | B21: 张伊铭 | C21: 2022011889 | D21: 本 | E21: 经济管理学院 | F21: 能源经济22级 | G21: 校团委宣传部
A22: 19 | B22: 章哲怡 | C22: 2021012176 | D22: 本 | E22: 马克思主义学院 | F22: 思想政治教育专业21级 | G22: 青马工程中心
A23: 20 | B23: 曲梓嫣 | C23: 2022012122 | D23: 本 | E23: 马克思主义学院 | F23: 思想政治教育专业22级 | G23: 青马工程中心
A24: 21 | B24: 于沁暄 | C24: 2022012183 | D24: 本 | E24: 经济管理学院 | F24: 财管22-1班 | G24: 青年成长服务中心
A25: 22 | B25: 张益铭 | C25: 2021012122 | D25: 本 | E25: 经济管理学院 | F25: 信管21-2班 | G25: 青年成长服务中心
A26: 23 | B26: 彭健锋 | C26: 2022011697 | D26: 本 | E26: 信息科学与工程学院/人工智能学院 | F26: 计算机22-4班 | G26: 青年成长服务中心
A27: 24 | B27: 杨小艺 | C27: 2022012168 | D27: 本 | E27: 外国语学院 | F27: 英语22-1班 | G27: 青年成长服务中心
A28: 25 | B28: 苑文轩 | C28: 2022011353 | D28: 本 | E28: 新能源与材料学院 | F28: 新能源22级 | G28: 青年成长服务中心
A29: 26 | B29: 王宇诠 | C29: 2022010332 | D29: 本 | E29: 碳中和示范性能源学院 | F29: 能源创新班22级 | G29: 青年实践创新中心
A30: 27 | B30: 陈禾婕 | C30: 2022010433 | D30: 本 | E30: 化学工程与环境学院 | F30: 能化22级 | G30: 青年实践创新中心
A31: 28 | B31: 李彤辉 | C31: 2022011946 | D31: 本 | E31: 经济管理学院 | F31: 会计22级 | G31: 青年实践创新中心
A32: 29 | B32: 章姝 | C32: 2022012184 | D32: 本 | E32: 经济管理学院 | F32: 能源经济22级 | G32: 青年实践创新中心
A33: 30 | B33: 李梦莹 | C33: 2022011421 | D33: 本 | E33: 碳中和未来技术学院 | F33: 储能科学与工程22级 | G33: 青年社团发展指导中心
A34: 31 | B34: 郭园粟 | C34: 2022012173 | D34: 本 | E34: 外国语学院 | F34: 英语22级 | G34: 青年社团发展指导中心
A35: 32 | B35: 庞浩宇 | C35: 2021011819 | D35: 本 | E35: 理学院 | F35: 应用化学21级 | G35: 青年社团发展指导中心
A36: 33 | B36: 陈晓璐 | C36: 2022012170 | D36: 本 | E36: 外国语学院 | F36: 英语22级 | G36: 青年社团发展指导中心
A37: 34 | B37: 任泽鹏 | C37: 2021011811 | D37: 本 | E37: 理学院 | F37: 数学与应用数学21级 | G37: 青年社团发展指导中心
A38: 35 | B38: 亓宸玥 | C38: 2022012151 | D38: 本 | E38: 马克思主义学院 | F38: 思想政治教育22级 | G38: 青年社团发展指导中心
A39: 36 | B39: 王以静 | C39: 2021011818 | D39: 本 | E39: 理学院 | F39: 应用化学21级 | G39: 青年社团发展指导中心
A40: 37 | B40: 邵先晨 | C40: 2022010290 | D40: 本 | E40: 信息科学与工程学院/人工智能学院 | F40: 电子22级 | G40: 青年社团发展指导中心
A41: 38 | B41: 万昊 | C41: 2022011546 | D41: 本 | E41: 信息科学与工程学院/人工智能学院 | F41: 计算机科学与技术22级 | G41: 青年志愿服务指导中心
A42: 39 | B42: 杨雨珊 | C42: 2022011921 | D42: 本 | E42: 经济管理学院 | F42: 能源经济 | G42: 青年志愿服务指导中心
A43: 40 | B43: 乔颖 | C43: 2022011917 | D43: 本 | E43: 经济管理学院 | F43: 能源经济 | G43: 青年志愿服务指导中心
A44: 41 | B44: 刘文静 | C44: 2022012149 | D44: 本 | E44: 马克思主义学院 | F44: 思想政治教育22级 | G44: 青年志愿服务指导中心
A45: 42 | B45: 任正元 | C45: 2021012060 | D45: 本 | E45: 经济管理学院 | F45: 市场营销 | G45: 青年志愿服务指导中心
A46: 43 | B46: 盛彤 | C46: 2021011827 | D46: 本 | E46: 理学院 | F46: 应用化学 | G46: 青年志愿服务指导中心
A47: 44 | B47: 李锦 | C47: 2022010040 | D47: 本 | E47: 碳中和未来技术学院 | F47: 储能科学与工程 | G47: 青年志愿服务指导中心
A48: 45 | B48: 钟梦婷 | C48: 2021012132 | D48: 本 | E48: 马克思主义学院 | F48: 思想政治教育 | G48: 青年志愿服务指导中心
A49: 46 | B49: 周芷羽 | C49: 2021010069 | D49: 本科 | E49: 地球科学学院 | F49: 资源勘查工程21级 | G49: 青年文化发展中心
A50: 47 | B50: 徐家骏 | C50: 2021011589 | D50: 本科 | E50: 信息科学与工程学院 | F50: 计算机科学与技术21级 | G50: 青年文化发展中心
A51: 48 | B51: 李潇 | C51: 2021012139 | D51: 本科 | E51: 马克思主义学院 | F51: 思想政治教育21级 | G51: 青年文化发展中心
A52: 49 | B52: 聂博丹 | C52: 2022012277 | D52: 本科 | E52: 碳中和未来技术学院 | F52: 碳储科学与工程22级 | G52: 青年文化发展中心
A53: 50 | B53: 陈雨薇 | C53: 2022011321 | D53: 本科 | E53: 新能源与材料学院 | F53: 新能源科学与工程22级 | G53: 青年文化发展中心
A54: 51 | B54: 密浩石 | C54: 2022010927 | D54: 本科 | E54: 信息科学与工程学院/人工智能学院 | F54: 电子信息工程22级 | G54: 青年文化发展中心
A55: 52 | B55: 谌启玥 | C55: 2022011942 | D55: 本科 | E55: 经济管理学院 | F55: 会计22级 | G55: 青年文化发展中心
A56: 53 | B56: 郑暄严 | C56: 2022011319 | D56: 本科 | E56: 经济管理学院 | F56: 财务管理22级 | G56: 青年文化发展中心
A57: 54 | B57: 巨博雅 | C57: 2022011806 | D57: 本 | E57: 理学院 | F57: 应用化学22级 | G57: 校学生会
A58: 55 | B58: 邹怀墨 | C58: 2022011723 | D58: 本 | E58: 信息科学与工程学院/人工智能学院 | F58: 自动化22级 | G58: 校学生会
A59: 56 | B59: 戴昀珊 | C59: 2021010130 | D59: 本 | E59: 地球科学学院 | F59: 地质学21级 | G59: 校学生会
A60: 57 | B60: 杨杭 | C60: 2022011184 | D60: 本 | E60: 安全与海洋工程学院 | F60: 安全工程22级 | G60: 校学生会
A61: 58 | B61: 黄乐 | C61: 2022011494 | D61: 本 | E61: 新能源与材料学院 | F61: 材料22级 | G61: 校学生会
A62: 59 | B62: 崔航博 | C62: 2021010666 | D62: 本 | E62: 机械与储运工程学院 | F62: 储运21级 | G62: 校学生会
A63: 60 | B63: 郭加西 | C63: 2022010324 | D63: 本 | E63: 石油工程学院 | F63: 石工22级 | G63: 校学生会
A64: 61 | B64: 肖涵芮 | C64: 2022010584 | D64: 本 | E64: 化学工程与环境学院 | F64: 化工22级 | G64: 校学生会
A65: 62 | B65: 药文杰 | C65: 2021215218 | D65: 研 | E65: 石油工程学院 | F65: 石油与天然气工程21级 | G65: 校研究生会
A66: 63 | B66: 张一 | C66: 2021211149 | D66: 研 | E66: 新能源与材料学院 | F66: 化学工程与技术21级 | G66: 校研究生会
A67: 64 | B67: 宋子扬 | C67: 2021216535 | D67: 研 | E67: 非常规油气科学技术研究院 | F67: 地质工程21级 | G67: 校研究生会
A68: 65 | B68: 张桐桐 | C68: 2022211437 | D68: 研 | E68: 经济管理学院 | F68: 管理科学与工程22级 | G68: 校研究生会
A69: 66 | B69: 张泽宸 | C69: 2022211418 | D69: 研 | E69: 经济管理学院 | F69: 管理科学与工程22级 | G69: 校研究生会
A70: 67 | B70: 李克培 | C70: 2022216675 | D70: 研 | E70: 非常规油气科学技术研究院 | F70: 石油与天然气工程22级 | G70: 校研究生会
A71: 68 | B71: 王宗飞 | C71: 2022210413 | D71: 研 | E71: 石油工程学院 | F71: 石油与天然气工程22级 | G71: 校研究生会
A72: 69 | B72: 胡安泰 | C72: 2022216009 | D72: 研 | E72: 信息科学与工程学院 | F72: 新一代电子信息22级 | G72: 校研究生会
A73: 70 | B73: 武光富 | C73: 2022215970 | D73: 研 | E73: 新能源与材料学院 | F73: 新能源专硕22级 | G73: 校研究生会
A74: 71 | B74: 王浩坤 | C74: 2022210721 | D74: 硕 | E74: 机械与储运工程学院 | F74: 机械工程研22级 | G74: 校研究生会
A75: 72 | B75: 鹿啸岳 | C75: 2021011265 | D75: 本 | E75: 安全与海洋工程学院 | F75: 海工21级 | G75: 招生大使团
A76: 73 | B76: 徐明杰 | C76: 2021011166 | D76: 本 | E76: 安全与海洋工程学院 | F76: 安全21级 | G76: 招生大使团
A77: 74 | B77: 李晓娇 | C77: 2021010469 | D77: 本 | E77: 化学工程与环境学院 | F77: 化工21级 | G77: 招生大使团
A78: 75 | B78: 杜敏 | C78: 2021011726 | D78: 本 | E78: 信息科学与工程学院 | F78: 自动化21级 | G78: 招生大使团
A79: 76 | B79: 韩俊雄 | C79: 2021011805 | D79: 本 | E79: 理学院 | F79: 统计学21级 | G79: 红十字会
A80: 77 | B80: 王亚玮 | C80: 2021010623 | D80: 本 | E80: 经济管理学院 | F80: 能经21-1 | G80: 红十字会
A81: 78 | B81: 杨嘉琦 | C81: 2021010461 | D81: 本 | E81: 化学工程与环境学院 | F81: 能化21-2级 | G81: 红十字会
A82: 79 | B82: 田皓苒 | C82: 2021011693 | D82: 本 | E82: 信息科学与工程学院 | F82: 自动化21-1级 | G82: 红十字会
A83: 80 | B83: 刘高 | C83: 2020011495 | D83: 本 | E83: 新能源与材料学院 | F83: 新能源20-1班 | G83: 创新与实践协会
A84: 81 | B84: 王瑶瑶 | C84: 2020010148 | D84: 本 | E84: 地球科学学院 | F84: 资源20级 | G84: 创新与实践协会
A85: 82 | B85: 徐卫星 | C85: 2021011894 | D85: 本 | E85: 经济管理学院 | F85: 金融学21级 | G85: 创新与实践协会
A86: 83 | B86: 宋太宏 | C86: 2021010269 | D86: 本 | E86: 石油工程学院 | F86: 石油工程21级 | G86: 创新与实践协会
A87: 84 | B87: 刘玥 | C87: 2020011289 | D87: 本 | E87: 安全与海洋工程学院 | F87: 安全工程20级 | G87: 大学生记者团
A88: 85 | B88: 刘玉旸 | C88: 2020010346 | D88: 本 | E88: 石油工程学院 | F88: 石油工程20级 | G88: 大学生记者团
A89: 86 | B89: 孙钦青 | C89: 2020010441 | D89: 本 | E89: 化学工程与环境学院 | F89: 环境工程20级 | G89: 大学生记者团
A90: 87 | B90: 王贵雯 | C90: 2021011821 | D90: 本 | E90: 理学院 | F90: 应用化学21级 | G90: 大学生记者团
A91: 88 | B91: 田依昀 | C91: 2020010694 | D91: 本 | E91: 信息科学与工程学院 | F91: 电子信息工程20级 | G91: 石大传媒工作室
A92: 89 | B92: 高闻阳 | C92: 2020012197 | D92: 本 | E92: 马克思主义学院 | F92: 思想政治教育20级 | G92: 石大传媒工作室
A93: 90 | B93: 任琢璠 | C93: 2020012161 | D93: 本 | E93: 马克思主义学院 | F93: 思想政治教育20级 | G93: 石大传媒工作室
A94: 91 | B94: 王宇哲 | C94: 2020010022 | D94: 本 | E94: 地球科学学院 | F94: 资源勘察工程20级 | G94: 石大传媒工作室
A95: 92 | B95: 高渐如 | C95: 2021011112 | D95: 本 | E95: 地球物理学院 | F95: 地球物理学21级1班 | G95: 觅音社
A96: 93 | B96: 吕月峰 | C96: 2021011121 | D96: 本 | E96: 地球物理学院 | F96: 勘查技术与工程21级2班 | G96: 觅音社
A97: 94 | B97: 马英伦 | C97: 2021010663 | D97: 本 | E97: 机械与储运工程学院 | F97: 油气储运工程21级1班 | G97: 觅音社
A98: 95 | B98: 白若兮 | C98: 2021010845 | D98: 本 | E98: 机械与储运工程学院 | F98: 机械设计制造及其自动化 21级1班 | G98: 觅音社
A99: 96 | B99: 蔡天艺 | C99: 2020011076 | D99: 本 | E99: 地球物理学院 | F99: 物探20-1班 | G99: 勤工助学中心
A100: 97 | B100: 燕泽明 | C100: 2021010660 | D100: 本 | E100: 机械与储运工程学院 | F100: 储运21-1班 | G100: 勤工助学中心
A101: 98 | B101: 任慧贤 | C101: 2021011904 | D101: 本 | E101: 经济管理学院 | F101: 金融21-1班 | G101: 勤工助学中心
A102: 99 | B102: 李文奎 | C102: 2021011210 | D102: 本 | E102: 信息科学与工程学院 | F102: 自动化21-3班 | G102: 勤工助学中心
A103: 100 | B103: 张健宇 | C103: 2020010978 | D103: 本 | E103: 机械与储运工程学院 | F103: 储运22-3 | G103: 国防教育协会
A104: 101 | B104: 刘尧 | C104: 2019011220 | D104: 本 | E104: 安全与海洋工程学院 | F104: 海工21-1 | G104: 国防教育协会
A105: 102 | B105: 胡永锋 | C105: 2017010616 | D105: 本 | E105: 马克思主义学院 | F105: 机械20-2 | G105: 国防教育协会
A106: 103 | B106: 武晓罡 | C106: 2018010653 | D106: 本 | E106: 机械与储运工程学院 | F106: 思政20-2 | G106: 国防教育协会
A107: 104 | B107: 黄晗纭 | C107: 2022012227 | D107: 本 | E107: 经济管理学院 | F107: 财务管理22-1 | G107: 体育舞蹈协会
A108: 105 | B108: 王嘉曼 | C108: 2023211367 | D108: 研 | E108: 理学院 | F108: 化学工程与技术 研23-3班 | G108: 体育舞蹈协会
A109: 106 | B109: 张淑媛 | C109: 2020011652 | D109: 本 | E109: 信息科学与工程学院|人工智能学院 | F109: 电子20-2班 | G109: CrazyCUP啦啦操社
A110: 107 | B110: 夏雪儿 | C110: 2020011340 | D110: 本 | E110: 安全与海洋工程学院 | F110: 安全20-3班 | G110: CrazyCUP啦啦操社
A111: 108 | B111: 李云菲 | C111: 2020012024 | D111: 本 | E111: 经济管理学院 | F111: 会计20-2班 | G111: CrazyCUP啦啦操社
A112: 109 | B112: 杨景政 | C112: 2020012004 | D112: 本 | E112: 经济管理学院 | F112: 信管20-1班 | G112: CrazyCUP啦啦操社
A113: 110 | B113: 庞泽群 | C113: 2021012259 | D113: 本 | E113: 信息科学与工程学院|人工智能学院 | F113: 计算机21-4班 | G113: 石大算法
A114: 111 | B114: 贺婧念 | C114: 2021011533 | D114: 本 | E114: 信息科学与工程/人工智能学院 | F114: 计算机21-1班 | G114: 石大算法
A115: 112 | B115: 夏冬华 | C115: 2021010889 | D115: 本 | E115: 机械与储运工程学院 | F115: 机械21-2班 | G115: SPR机器人协会
A116: 113 | B116: 李熠轩 | C116: 2022010898 | D116: 本 | E116: 机械与储运工程学院 | F116: 机器人22-1班 | G116: SPR机器人协会
A117: 114 | B117: 彭云飞 | C117: 2020010627 | D117: 本 | E117: 化学工程与环境学院 | F117: 化工20-3 | G117: AIChE-CUPB
A118: 115 | B118: 潘思迪 | C118: 2021010465 | D118: 本 | E118: 化学工程与环境学院 | F118: 能化21-1 | G118: AIChE-CUPB
A119: 116 | B119: 胡鹏 | C119: 2021011677 | D119: 本 | E119: 信息科学与工程学院/人工智能学院 | F119: 电子21-2 | G119: 智能控制协会
A120: 117 | B120: 刘智扬 | C120: 2021011810 | D120: 本 | E120: 理学院 | F120: 统计学21-1班 | G120: 物理协会
A121: 118 | B121: 李婉铭 | C121: 2021011793 | D121: 本 | E121: 理学院 | F121: 统计学21-1班 | G121: 物理协会
A122: 119 | B122: 赵燊燊 | C122: 2020011163 | D122: 本 | E122: 地球物理学院 | F122: 地物20-1班 | G122: 数学社
A123: 120 | B123: 张馨予 | C123: 2020011282 | D123: 本 | E123: 安全与海洋工程学院 | F123: 安全20-1班 | G123: 数学社
A124: 121 | B124: 杨子涵 | C124: 2021010007 | D124: 本 | E124: 地球科学学院 | F124: 地质21－1 | G124: 科普协会
A125: 122 | B125: 王培硕 | C125: 2021011553 | D125: 本 | E125: 信息科学与工程学院 | F125: 计算机21-1班 | G125: 星罗天文社
A126: 123 | B126: 赵侯博 | C126: 2022011440 | D126: 本 | E126: 新能源与材料学院 | F126: 材料22-1班 | G126: 星罗天文社
A127: 124 | B127: 李佳轩 | C127: 2020011363 | D127: 本 | E127: 安全与海洋工程学院 | F127: 安全2020级 20-3班 | G127: 校辩论队
A128: 125 | B128: 孙钰丰 | C128: 2020010661 | D128: 本 | E128: 化学工程与环境学院 | F128: 能源化工2020级（20-2班） | G128: 校辩论队
A129: 126 | B129: 刘家庆 | C129: 2020011965 | D129: 本 | E129: 经济管理学院 | F129: 金融学2020级（20-1班） | G129: 数学建模协会
A130: 127 | B130: 肖婧雯 | C130: 2020012065 | D130: 本 | E130: 经济管理学院 | F130: 能源经济2020级（20-1班） | G130: 数学建模协会
A131: 128 | B131: 孙德昊 | C131: 2021011359 | D131: 本 | E131: 新能源与材料学院 | F131: 新能源21-1班 | G131: 流云车协
A132: 129 | B132: 田宇航 | C132: 2021010300 | D132: 本 | E132: 信息科学与工程学院 | F132: 计算机21-4班 | G132: 流云车协
A133: 130 | B133: 王文天 | C133: 2021010360 | D133: 本 | E133: 石油工程学院 | F133: 石油工程2021级 | G133: 中石大白鸽高塔剑术研修会
A134: 131 | B134: 王一杰 | C134: 2021011397 | D134: 本 | E134: 新能源与材料学院 | F134: 新能源21-2 | G134: 中石大白鸽高塔剑术研修会
A135: 132 | B135: 王一伊 | C135: 2022010400 | D135: 本 | E135: 化学工程与环境学院 | F135: 能源化学工程22级 | G135: 田径协会
A136: 133 | B136: 叶洪剑 | C136: 2022010682 | D136: 本 | E136: 机械与储运学院 | F136: 储运22-2 | G136: Blazing橄榄球社
A137: 134 | B137: 李润桐 | C137: 2021010375 | D137: 本 | E137: 化学工程与环境学院 | F137: 化工21-2 | G137: Blazing橄榄球社
A138: 135 | B138: 孙培渊 | C138: 2020010222 | D138: 本 | E138: 石油工程学院 | F138: 石工20-1班 | G138: 铁人三项协会
A139: 136 | B139: 靳涵真 | C139: 2022012051 | D139: 本 | E139: 经济管理学院 | F139: 信管22-1 | G139: 游泳协会
A140: 137 | B140: 熊静怡 | C140: 2021010597 | D140: 本 | E140: 化学工程与环境学院 | F140: 环科21-2 | G140: 排球协会
A141: 138 | B141: 陈文静 | C141: 2022011775 | D141: 本 | E141: 理学院 | F141: 数学22-1 | G141: 排球协会
A142: 139 | B142: 张阔 | C142: 2020010616 | D142: 本 | E142: 化学工程与环境学院 | F142: 化学工程与工艺20-1班 | G142: 校篮球协会
A143: 140 | B143: 马财顺 | C143: 2021010792 | D143: 本 | E143: 机械与储运工程学院 | F143: 能源与动力工程21-2班 | G143: 校篮球协会
A144: 141 | B144: 邢嘉仪 | C144: 2021012207 | D144: 本 | E144: 外国语学院 | F144: 英语21-1 | G144: 羽毛球协会
A145: 142 | B145: 吴熠晨 | C145: 2021011398 | D145: 本 | E145: 新能源与材料学院 | F145: 新能源21-2 | G145: 羽毛球协会
A146: 143 | B146: 王建智 | C146: 2020010490 | D146: 本 | E146: 化学工程与环境学院 | F146: 环工20-1 | G146: 台球协会
A147: 144 | B147: 郭帅 | C147: 2022011444 | D147: 本 | E147: 材料工程与科学学院 | F147: 材料22-1 | G147: 台球协会
A148: 145 | B148: 孙蕾 | C148: 2021011828 | D148: 本 | E148: 理学院 | F148: 应化21-1 | G148: 人文艺术发展协会
A149: 146 | B149: 李思源 | C149: 2021011962 | D149: 本 | E149: 经济管理学院 | F149: 会计21-2 | G149: 人文艺术发展协会
A150: 147 | B150: 冶国瑞 | C150: 2022011995 | D150: 本 | E150: 经济管理学院 | F150: 会计22级 | G150: 陶笛社
A151: 148 | B151: 刘沛均 | C151: 2021012198 | D151: 本 | E151: 外国语学院 | F151: 英语21级 | G151: 陶笛社
A152: 149 | B152: 吴傲然 | C152: 2020010946 | D152: 本 | E152: 机械与储运工程学院 | F152: 油气储运20级 | G152: 石长乐相声社
A153: 150 | B153: 蔡毓 | C153: 2020010381 | D153: 本 | E153: 化学工程与环境学院 | F153: 环科20-1 | G153: suki动漫社
A154: 151 | B154: 张雨莹 | C154: 2020011986 | D154: 本 | E154: 经济管理学院 | F154: 信管20-1 | G154: suki动漫社
A155: 152 | B155: 刘钰 | C155: 2021011016 | D155: 本 | E155: 碳中和未来技术学院 | F155: 储能21级 | G155: 百草园书社
A156: 153 | B156: 王一帆 | C156: 2021011101 | D156: 本 | E156: 地球物理学院 | F156: 物探21级 | G156: 百草园书社
A157: 154 | B157: 李德谦 | C157: 2021010599 | D157: 本 | E157: 碳中和未来技术学院 | F157: 碳储21级 | G157: 海燕文学社
A158: 155 | B158: 姜博文 | C158: 2020011707 | D158: 本 | E158: 信息科学与工程学院/人工智能学院 | F158: 计算机20级 | G158: 海燕文学社
A159: 156 | B159: 郭柔伽 | C159: 2022012176 | D159: 本 | E159: 外国语学院 | F159: 英语22级 | G159: 绿色发展协会
A160: 157 | B160: 白如霖 | C160: 2022011818 | D160: 本 | E160: 理学院 | F160: 应化22级 | G160: 绿色发展协会
A161: 158 | B161: 夏子健 | C161: 2020011542 | D161: 本 | E161: 新能源与材料学院 | F161: 新能源20-2班 | G161: 中外交流协会
A162: 159 | B162: 潘奕霖 | C162: 2020010335 | D162: 本 | E162: 石油工程学院 | F162: 石工20-5班 | G162: 中外交流协会
A163: 160 | B163: 徐鑫 | C163: 2021010920 | D163: 本 | E163: 机械与储运工程学院 | G163: 校友联络会
A164: 161 | B164: 褚坤 | C164: 2021010116 | D164: 本 | E164: 地球科学学院 | F164: 资源勘查21级 | G164: 校友联络会
A165: 162 | B165: 范基梁 | C165: 2021215194 | D165: 研 | E165: 石油与工程学院 | F165: 资环研21-3 | G165: 心灵阳光协会
A166: 163 | B166: 郑蔚茹 | C166: 2021215206 | D166: 研 | E166: 石油与工程学院 | F166: 资环研21-4 | G166: 心灵阳光协会
A167: 164 | B167: 宋佳隆 | C167: 2021010723 | D167: 本 | E167: 机械与储运工程学院 | F167: 储运21-3 | G167: 职业发展协会
A168: 165 | B168: 王云昊 | C168: 2021012151 | D168: 本 | E168: 马克思主义学院 | F168: 思政21-1班 | G168: 职业发展协会
A169: 166 | B169: 马秀 | C169: 2021010154 | D169: 本 | E169: 经济管理学院 | F169: 金融21－1 | G169: 校史宣讲团
A170: 167 | B170: 郝帅 | C170: 2021010040 | D170: 本 | E170: 地球科学学院 | F170: 地质21－1 | G170: 校史宣讲团
A171: 168 | B171: 白悦思 | C171: 2020011717 | D171: 本 | E171: 信息科学与工程学院/人工智能学院 | F171: 计算机20级 | G171: 模拟联合国协会
A172: 169 | B172: 寿乐鹏 | C172: 2021010268 | D172: 本 | E172: 石油工程学院 | F172: 石油工程21级 | G172: 模拟联合国协会
A173: 170 | B173: 李嘉译 | C173: 2021011692 | D173: 本 | E173: 信息科学与工程学院 | F173: 自动化21-1 | G173: 学工新媒体工作室
A174: 171 | B174: 姜泽坤 | C174: 2022011682 | D174: 本 | E174: 碳中和未来技术学院 | F174: 储能22-1未来班 | G174: 学工新媒体工作室
A175: 172 | B175: 张成骏 | C175: 2021011414 | D175: 本 | E175: 新能源与材料学院 | F175: 储能科学与工程21-1班 | G175: 广播台
A176: 173 | B176: 郭赫一 | C176: 2021010096 | D176: 本 | E176: 地球科学学院 | F176: 资源21-3班 | G176: 广播台
A177: 174 | B177: 李海博 | C177: 2021010073 | D177: 本 | E177: 信息科学与工程学院/人工智能学院 | F177: 电子21-1班 | G177: 国旗仪仗队
A178: 175 | B178: 张书瑞 | C178: 2021010981 | D178: 本 | E178: 机械与储运工程学院 | F178: 能动21-2班 | G178: 国旗仪仗队
A179: 176 | B179: 刘羲阳 | C179: 2021010485 | D179: 本 | E179: 化学工程与环境学院 | F179: 化学工程与工艺21-1班 | G179: 桑格美术社
A180: 177 | B180: 傅圣博 | C180: 2021011966 | D180: 本 | E180: 经济管理学院 | F180: 财务管理21-1班 | G180: 桑格美术社
A181: 178 | B181: 刘靖娴 | C181: 2021011940 | D181: 本 | E181: 经济管理学院 | F181: 金融21-1班 | G181: 石创空间
A182: 179 | B182: 景婉婷 | C182: 2021010846 | D182: 本 | E182: 机械与储运工程学院 | F182: 机械21-2班 | G182: 石创空间
A183: 180 | B183: 胡秀琳 | C183: 2021011562 | D183: 本 | E183: 信息科学与工程学院 | F183: 计算机21-2班 | G183: 英语协会
A184: 181 | B184: 贾舜尧 | C184: 2022012356 | D184: 本 | E184: 经济管理学院 | F184: 工管22-2班 | G184: 第九艺术研发社
A185: 182 | B185: 李昕洋 | C185: 2021011489 | D185: 本 | E185: 新能源与材料学院 | F185: 材料科学与工程21-2班 | G185: 世元弈社
A186: 183 | B186: 张之蛟 | C186: 2020011042 | D186: 本 | E186: 地球物理学院 | F186: 物探20-1 | G186: 足球协会
A187: 184 | B187: 沈昊旸 | C187: 2022012334 | D187: 本 | E187: 碳中和示范性能源学院 | F187: 油气储运22级 | G187: 天行箭宗
A188: 185 | B188: 王麟杰 | C188: 2022010244 | D188: 本 | E188: 石油工程学院 | F188: 石油工程22级 | G188: 网球协会
A189: 186 | B189: 袁思扬 | C189: 2022010939 | D189: 本 | E189: 机械与储运工程学院 | F189: 机器人工程22级 | G189: 516轮滑社
A190: 187 | B190: 吴迅康 | C190: 2021010285 | D190: 本 | E190: 石油工程学院 | F190: 石油工程21级 | G190: 乒乓球爱好者协会
A191: 188 | B191: 李诗涵 | C191: 2021012125 | D191: 本 | E191: 马克思主义学院 | F191: 思政21级 | G191: 原石模创社
A192: 189 | B192: 张阵雨 | C192: 2020011185 | D192: 本 | E192: 地球物理学院 | F192: 物探20-2 | G192: 正心书社
A193: 190 | B193: 吴钦炀 | C193: 2020010653 | D193: 本 | E193: 化学工程与环境学院 | F193: 化学工程20级 | G193: 推理社
A194: 191 | B194: 包玉杰 | C194: 2021012180 | D194: 本 | E194: 马克思主义学院 | F194: 思政21级 | G194: 历史文化协会
A195: 192 | B195: 才仁久杰 | C195: 2022010912 | D195: 本 | E195: 机械与储运工程学院 | F195: 过程22-2 | G195: 珠峰文化交流协会
A196: 193 | B196: 董芸菲 | C196: 2020012221 | D196: 本 | E196: 外国语学院 | F196: 英语20-1 | G196: 校礼仪队
A197: 194 | B197: 冯钰森 | C197: 2021010051 | D197: 本 | E197: 地球科学学院 | F197: 资源21-2 | G197: 伙食管理委员会
A198: 195 | B198: 邹加鑫 | C198: 2021012150 | D198: 本 | E198: 马克思主义学院 | F198: 思政21-1 | G198: 模拟政协
A199: 196 | B199: 徐晨 | C199: 2021010091 | D199: 本 | E199: 地球科学学院 | F199: 资源勘查工程本2021级 | G199: 地学院学生会
A200: 197 | B200: 刘明星 | C200: 2021010143 | D200: 本 | E200: 地球科学学院 | F200: 资源勘查工程本2021级 | G200: 地学院学生会
... 174 more rows

Sheet 优秀团员
A1: 中国石油大学2022-2023学年优秀团员
A2: 本科二年级及以上在本科生可参评优秀团员，优秀团员数量不得高于总团员数得10%（以“北京共青团”系统记录 团员数为准）。基本条件：体能测试及格综合测评专业前30%，未受过纪律处分。年度团员评议结果需为“优”， “志愿北京”中登记志愿时长不少于20小时。各学院需严格审核条件，未满28周岁的学生党员可参评此荣誉称号。
A3: 序号 | B3: 姓名 | C3: 学号 | D3: 学院/研究院（全称） | E3: 专业年级 | F3: 备注
A4: 1 | B4: 杨子涵 | C4: 2021010007 | D4: 地球科学学院 | E4: 地质学2021级
A5: 2 | B5: 黄祺智 | C5: 2022010026 | D5: 地球科学学院 | E5: 地质学2022级
A6: 3 | B6: 赵柯欣 | C6: 2021010127 | D6: 地球科学学院 | E6: 地质学2021级
A7: 4 | B7: 杨荣彬 | C7: 2021010152 | D7: 地球科学学院 | E7: 地质学2021级
A8: 5 | B8: 史国梁 | C8: 2020010110 | D8: 地球科学学院 | E8: 资源勘查工程2020级
A9: 6 | B9: 郭慧 | C9: 2020010120 | D9: 地球科学学院 | E9: 资源勘查工程2020级
A10: 7 | B10: 李佳蓉 | C10: 2020010036 | D10: 地球科学学院 | E10: 地质学2020级
A11: 8 | B11: 郭倩雯 | C11: 2020010144 | D11: 地球科学学院 | E11: 资源勘查工程2020级
A12: 9 | B12: 李宝莉 | C12: 2020010007 | D12: 地球科学学院 | E12: 资源勘查工程2020级
A13: 10 | B13: 李玲 | C13: 2020010169 | D13: 地球科学学院 | E13: 资源勘查工程2020级
A14: 11 | B14: 周越 | C14: 2020010170 | D14: 地球科学学院 | E14: 资源勘查工程2020级
A15: 12 | B15: 欧长健 | C15: 2020010075 | D15: 地球科学学院 | E15: 资源勘查工程2020级
A16: 13 | B16: 吕对林 | C16: 2020010113 | D16: 地球科学学院 | E16: 资源勘查工程2020级
A17: 14 | B17: 金世贵 | C17: 2020010012 | D17: 地球科学学院 | E17: 资源勘查工程2020级
A18: 15 | B18: 邵临波 | C18: 2020010044 | D18: 地球科学学院 | E18: 资源勘查工程2020级
A19: 16 | B19: 彭赫 | C19: 2022010009 | D19: 地球科学学院 | E19: 地质学2022级
A20: 17 | B20: 李宁 | C20: 2022010117 | D20: 地球科学学院 | E20: 资源勘查工程2022级
A21: 18 | B21: 郑佳桐 | C21: 2022010081 | D21: 地球科学学院 | E21: 资源勘查工程2022级
A22: 19 | B22: 朱亚连 | C22: 2022010132 | D22: 地球科学学院 | E22: 资源勘查工程2022级
A23: 20 | B23: 段雨杨 | C23: 2022010039 | D23: 地球科学学院 | E23: 资源勘查工程2022级
A24: 21 | B24: 杜健 | C24: 2022010017 | D24: 地球科学学院 | E24: 资源勘查工程2022级
A25: 23 | B25: 刘简凡 | C25: 2022010123 | D25: 地球科学学院 | E25: 资源勘查工程2022级
A26: 24 | B26: 马燕 | C26: 2022010033 | D26: 地球科学学院 | E26: 资源勘查工程2022级
A27: 25 | B27: 胡朝熠 | C27: 2022010021 | D27: 地球科学学院 | E27: 资源勘查工程2022级
A28: 26 | B28: 赵子涵 | C28: 2021010031 | D28: 地球科学学院 | E28: 资源勘查工程2021级
A29: 27 | B29: 徐晨 | C29: 2021010091 | D29: 地球科学学院 | E29: 资源勘查工程2021级
A30: 28 | B30: 冯钰森 | C30: 2021010051 | D30: 地球科学学院 | E30: 资源勘查工程2021级
A31: 29 | B31: 石钰卿 | C31: 2021010120 | D31: 地球科学学院 | E31: 资源勘查工程2021级
A32: 30 | B32: 陈蓉 | C32: 2021010063 | D32: 地球科学学院 | E32: 资源勘查工程2021级
A33: 31 | B33: 郭泽慧 | C33: 2021010065 | D33: 地球科学学院 | E33: 资源勘查工程2021级
A34: 32 | B34: 徐瑞阳 | C34: 2022010003 | D34: 地球科学学院 | E34: 资源勘查工程2022级
A35: 33 | B35: 刘瑞恒 | C35: 2020010208 | D35: 石油工程学院 | E35: 石油工程专业2020级
A36: 34 | B36: 李柏辰 | C36: 2020010224 | D36: 石油工程学院 | E36: 石油工程专业2020级
A37: 35 | B37: 黄桂定 | C37: 2020010239 | D37: 石油工程学院 | E37: 石油工程专业2020级
A38: 36 | B38: 程建伟 | C38: 2020010252 | D38: 石油工程学院 | E38: 石油工程专业2020级
A39: 37 | B39: 马金亮 | C39: 2020010270 | D39: 石油工程学院 | E39: 石油工程专业2020级
A40: 38 | B40: 段连东 | C40: 2020010279 | D40: 石油工程学院 | E40: 石油工程专业2020级
A41: 39 | B41: 朱上 | C41: 2020010298 | D41: 石油工程学院 | E41: 石油工程专业2020级
A42: 40 | B42: 谢文朝阳 | C42: 2020010309 | D42: 石油工程学院 | E42: 石油工程专业2020级
A43: 41 | B43: 赵芸鹏 | C43: 2020010321 | D43: 石油工程学院 | E43: 石油工程专业2020级
A44: 42 | B44: 冯琪 | C44: 2020010334 | D44: 石油工程学院 | E44: 石油工程专业2020级
A45: 43 | B45: 王子睿 | C45: 2020010348 | D45: 石油工程学院 | E45: 石油工程专业2020级
A46: 44 | B46: 马学强 | C46: 2020010366 | D46: 石油工程学院 | E46: 石油工程专业2020级
A47: 45 | B47: 马晓涵 | C47: 2021010185 | D47: 石油工程学院 | E47: 石油工程专业2021级
A48: 46 | B48: 唐真艺 | C48: 2021010188 | D48: 石油工程学院 | E48: 石油工程专业2021级
A49: 47 | B49: 张安迪 | C49: 2021010217 | D49: 石油工程学院 | E49: 石油工程专业2021级
A50: 48 | B50: 席鹏飞 | C50: 2021010221 | D50: 石油工程学院 | E50: 石油工程专业2021级
A51: 49 | B51: 李聪岩 | C51: 2021010260 | D51: 石油工程学院 | E51: 石油工程专业2021级
A52: 50 | B52: 胡启航 | C52: 2021010263 | D52: 石油工程学院 | E52: 石油工程专业2021级
A53: 51 | B53: 李登锋 | C53: 2021010264 | D53: 石油工程学院 | E53: 石油工程专业2021级
A54: 52 | B54: 周怡辰 | C54: 2021010287 | D54: 石油工程学院 | E54: 石油工程专业2021级
A55: 53 | B55: 李彦霈 | C55: 2021010298 | D55: 石油工程学院 | E55: 石油工程专业2021级
A56: 54 | B56: 刘昊天 | C56: 2021010315 | D56: 石油工程学院 | E56: 石油工程专业2021级
A57: 55 | B57: 秦腾飞 | C57: 2021010327 | D57: 石油工程学院 | E57: 石油工程专业2021级
A58: 56 | B58: 陈照琦 | C58: 2021010335 | D58: 石油工程学院 | E58: 石油工程专业2021级
A59: 57 | B59: 王卫帅 | C59: 2021010338 | D59: 石油工程学院 | E59: 石油工程专业2021级
A60: 58 | B60: 杨贺尧 | C60: 2022010217 | D60: 石油工程学院 | E60: 石油工程专业2022级
A61: 59 | B61: 王麟杰 | C61: 2022010244 | D61: 石油工程学院 | E61: 石油工程专业2022级
A62: 60 | B62: 杨耀翔 | C62: 2022010247 | D62: 石油工程学院 | E62: 石油工程专业2022级
A63: 61 | B63: 刘蘅叶 | C63: 2022010253 | D63: 石油工程学院 | E63: 石油工程专业2022级
A64: 62 | B64: 宫贺 | C64: 2022010292 | D64: 石油工程学院 | E64: 石油工程专业2022级
A65: 63 | B65: 冯骏驰 | C65: 2022010298 | D65: 石油工程学院 | E65: 石油工程专业2022级
A66: 64 | B66: 丛志远 | C66: 2022010319 | D66: 石油工程学院 | E66: 石油工程专业2022级
A67: 65 | B67: 宋子硕 | C67: 2022010330 | D67: 石油工程学院 | E67: 石油工程专业2022级
A68: 66 | B68: 常淼轩 | C68: 2022010337 | D68: 石油工程学院 | E68: 石油工程专业2022级
A69: 67 | B69: 符香香 | C69: 2022010338 | D69: 石油工程学院 | E69: 石油工程专业2022级
A70: 68 | B70: 毕雅琪 | C70: 2020010634 | D70: 化学工程与环境学院 | E70: 化工20-1班
A71: 69 | B71: 南楠 | C71: 2020010565 | D71: 化学工程与环境学院 | E71: 化工20-2班
A72: 70 | B72: 王世豪 | C72: 2020010549 | D72: 化学工程与环境学院 | E72: 化工20-2班
A73: 71 | B73: 薛姿杰 | C73: 2020010531 | D73: 化学工程与环境学院 | E73: 化工20-2班
A74: 72 | B74: 何海杨 | C74: 2020010529 | D74: 化学工程与环境学院 | E74: 化工20-3班
A75: 73 | B75: 李尧 | C75: 2020010625 | D75: 化学工程与环境学院 | E75: 化工20-3班
A76: 74 | B76: 刘子涵 | C76: 2020010605 | D76: 化学工程与环境学院 | E76: 化工20-3班
A77: 75 | B77: 池双佑 | C77: 2021010453 | D77: 化学工程与环境学院 | E77: 化工21-3班
A78: 76 | B78: 魏雯静 | C78: 2021010365 | D78: 化学工程与环境学院 | E78: 化工21-1班
A79: 77 | B79: 廖安安 | C79: 2021010366 | D79: 化学工程与环境学院 | E79: 化工21-1班
A80: 78 | B80: 林楚媛 | C80: 2021010397 | D80: 化学工程与环境学院 | E80: 化工21-2班
A81: 79 | B81: 马颖 | C81: 2021010400 | D81: 化学工程与环境学院 | E81: 化工21-2班
A82: 80 | B82: 张梦涵 | C82: 2021010408 | D82: 化学工程与环境学院 | E82: 化工21-2班
A83: 81 | B83: 黄凯涵 | C83: 2021010454 | D83: 化学工程与环境学院 | E83: 化工21-3班
A84: 82 | B84: 王晴宇 | C84: 2022010373 | D84: 化学工程与环境学院 | E84: 化工22-1班
A85: 83 | B85: 顾凌云 | C85: 2022010622 | D85: 化学工程与环境学院 | E85: 化工22-1班
A86: 84 | B86: 孙涵 | C86: 2022010436 | D86: 化学工程与环境学院 | E86: 化工22-2班
A87: 85 | B87: 康胜 | C87: 2022010452 | D87: 化学工程与环境学院 | E87: 化工22-2班
A88: 86 | B88: 彭莎莎 | C88: 2022010406 | D88: 化学工程与环境学院 | E88: 化工22-3班
A89: 87 | B89: 李煌 | C89: 2022010478 | D89: 化学工程与环境学院 | E89: 化工22-3班
A90: 88 | B90: 赵杰东 | C90: 2020010462 | D90: 化学工程与环境学院 | E90: 环工20-1班
A91: 89 | B91: 周雪 | C91: 2020010379 | D91: 化学工程与环境学院 | E91: 环工20-1班
A92: 90 | B92: 黄超越 | C92: 2020010446 | D92: 化学工程与环境学院 | E92: 环工20-2班
A93: 91 | B93: 李明月 | C93: 2020010411 | D93: 化学工程与环境学院 | E93: 环工20-2班
A94: 92 | B94: 周佳奇 | C94: 2021010590 | D94: 化学工程与环境学院 | E94: 环工21-2班
A95: 93 | B95: 陈薪同 | C95: 2021010556 | D95: 化学工程与环境学院 | E95: 环工21-2班
A96: 94 | B96: 王文紫瑶 | C96: 2022010529 | D96: 化学工程与环境学院 | E96: 环工22-1班
A97: 95 | B97: 李慧 | C97: 2022010534 | D97: 化学工程与环境学院 | E97: 环工22-1班
A98: 96 | B98: 卢晗 | C98: 2020010391 | D98: 化学工程与环境学院 | E98: 环科20-1班
A99: 97 | B99: 石露露 | C99: 2020010473 | D99: 化学工程与环境学院 | E99: 环科20-1班
A100: 98 | B100: 刘坤 | C100: 2020010434 | D100: 化学工程与环境学院 | E100: 环科20-2班
A101: 99 | B101: 张雨敏 | C101: 2020010413 | D101: 化学工程与环境学院 | E101: 环科20-2班
A102: 100 | B102: 杨彦钰 | C102: 2021010628 | D102: 化学工程与环境学院 | E102: 环科21-1班
A103: 101 | B103: 熊静怡 | C103: 2021010597 | D103: 化学工程与环境学院 | E103: 环科21-2班
A104: 102 | B104: 马雪儿 | C104: 2022010588 | D104: 化学工程与环境学院 | E104: 环科22-1班
A105: 103 | B105: 李伊文 | C105: 2022010577 | D105: 化学工程与环境学院 | E105: 环科22-1班
A106: 104 | B106: 莫菲 | C106: 2020010500 | D106: 化学工程与环境学院 | E106: 能化20-1班
A107: 105 | B107: 苏鑫亮 | C107: 2020010586 | D107: 化学工程与环境学院 | E107: 能化20-1班
A108: 106 | B108: 秦小童 | C108: 2020010505 | D108: 化学工程与环境学院 | E108: 能化20-2班
A109: 107 | B109: 钟宇航 | C109: 2020010654 | D109: 化学工程与环境学院 | E109: 能化20-2班
A110: 108 | B110: 王医灵 | C110: 2021010431 | D110: 化学工程与环境学院 | E110: 能化21-1班
A111: 109 | B111: 裴俊豪 | C111: 2021010442 | D111: 化学工程与环境学院 | E111: 能化21-1班
A112: 110 | B112: 鹿麒麟 | C112: 2021010486 | D112: 化学工程与环境学院 | E112: 能化21-2班
A113: 111 | B113: 程嘉欣 | C113: 2021010466 | D113: 化学工程与环境学院 | E113: 能化21-2班
A114: 112 | B114: 张鑫 | C114: 2022010496 | D114: 化学工程与环境学院 | E114: 能化22－2班
A115: 113 | B115: 王德民 | C115: 2022010455 | D115: 化学工程与环境学院 | E115: 能化22-1班
A116: 114 | B116: 张志彬 | C116: 2022010491 | D116: 化学工程与环境学院 | E116: 能化22-2班
A117: 115 | B117: 李思妍 | C117: 2021010527 | D117: 化学工程与环境学院 | E117: 环工21-1班
A118: 116 | B118: 刘世鑫 | C118: 2021010548 | D118: 化学工程与环境学院 | E118: 环工21-1班
A119: 117 | B119: 周倍生 | C119: 2022012326 | D119: 化学工程与环境学院 | E119: 环工22-2班
A120: 118 | B120: 李子涵 | C120: 2022010602 | D120: 化学工程与环境学院 | E120: 环工22-2班
A121: 119 | B121: 师海熙 | C121: 2022010872 | D121: 机械与储运工程学院 | E121: 机器人工程本22级
A122: 120 | B122: 于秀洋 | C122: 2022010846 | D122: 机械与储运工程学院 | E122: 机器人工程本22级
A123: 121 | B123: 王嵩 | C123: 2022010921 | D123: 机械与储运工程学院 | E123: 机械设计制造及其自动化本22级
A124: 122 | B124: 金希源 | C124: 2022010840 | D124: 机械与储运工程学院 | E124: 机械设计制造及其自动化本22级
A125: 123 | B125: 史郭芮 | C125: 2022010964 | D125: 机械与储运工程学院 | E125: 机械设计制造及其自动化本22级
A126: 124 | B126: 穆飞云 | C126: 2022010738 | D126: 机械与储运工程学院 | E126: 能源与动力工程本22级
A127: 125 | B127: 宋暑寒 | C127: 2022010758 | D127: 机械与储运工程学院 | E127: 能源与动力工程本22级
A128: 126 | B128: 赵帅昌 | C128: 2022010668 | D128: 机械与储运工程学院 | E128: 油气储运工程本22级
A129: 127 | B129: 宋清爽 | C129: 2022010639 | D129: 机械与储运工程学院 | E129: 油气储运工程本22级
A130: 128 | B130: 包雅睿 | C130: 2022010671 | D130: 机械与储运工程学院 | E130: 油气储运工程本22级
A131: 129 | B131: 何文博 | C131: 2022010692 | D131: 机械与储运工程学院 | E131: 油气储运工程本22级
A132: 130 | B132: 陈云起 | C132: 2022010679 | D132: 机械与储运工程学院 | E132: 油气储运工程本22级
A133: 131 | B133: 陈明钰 | C133: 2022010675 | D133: 机械与储运工程学院 | E133: 油气储运工程本22级
A134: 132 | B134: 祁家宝 | C134: 2022010718 | D134: 机械与储运工程学院 | E134: 油气储运工程本22级
A135: 133 | B135: 马成宇 | C135: 2022010711 | D135: 机械与储运工程学院 | E135: 油气储运工程本22级
A136: 134 | B136: 雷宇乐 | C136: 2022010713 | D136: 机械与储运工程学院 | E136: 油气储运工程本22级
A137: 135 | B137: 屈成璐 | C137: 2022010703 | D137: 机械与储运工程学院 | E137: 油气储运工程本22级
A138: 136 | B138: 李铠睿 | C138: 2022010725 | D138: 机械与储运工程学院 | E138: 油气储运工程本22级
A139: 137 | B139: 卢永涛 | C139: 2022010798 | D139: 机械与储运工程学院 | E139: 过程装备与控制工程本22级
A140: 138 | B140: 范文栋 | C140: 2022010950 | D140: 机械与储运工程学院 | E140: 过程装备与控制工程本22级
A141: 139 | B141: 李晓茜 | C141: 2022010909 | D141: 机械与储运工程学院 | E141: 过程装备与控制工程本22级
A142: 140 | B142: 侬光裕 | C142: 2022010788 | D142: 机械与储运工程学院 | E142: 能源与动力工程本22级
A143: 141 | B143: 杨璞 | C143: 2022010775 | D143: 机械与储运工程学院 | E143: 能源与动力工程本22级
A144: 142 | B144: 张超 | C144: 2022010805 | D144: 机械与储运工程学院 | E144: 机械设计制造及其自动化本22级
A145: 143 | B145: 付明林 | C145: 2022010920 | D145: 机械与储运工程学院 | E145: 机械设计制造及其自动化本22级
A146: 144 | B146: 王硕 | C146: 2022010988 | D146: 机械与储运工程学院 | E146: 机械设计制造及其自动化本22级
A147: 145 | B147: 朱琪 | C147: 2021010993 | D147: 机械与储运工程学院 | E147: 过程装备与控制工程本21级
A148: 146 | B148: 赵五洲 | C148: 2021010877 | D148: 机械与储运工程学院 | E148: 过程装备与控制工程本21级
A149: 147 | B149: 瞿友靖 | C149: 2021010973 | D149: 机械与储运工程学院 | E149: 过程装备与控制工程本21级
A150: 148 | B150: 高立勋 | C150: 2021010964 | D150: 机械与储运工程学院 | E150: 过程装备与控制工程本21级
A151: 149 | B151: 徐鑫 | C151: 2021010920 | D151: 机械与储运工程学院 | E151: 过程装备与控制工程本21级
A152: 150 | B152: 边瑀梦 | C152: 2021010911 | D152: 机械与储运工程学院 | E152: 过程装备与控制工程本21级
A153: 151 | B153: 苏奕静 | C153: 2021010684 | D153: 机械与储运工程学院 | E153: 油气储运工程本21级
A154: 152 | B154: 黄洋 | C154: 2021010679 | D154: 机械与储运工程学院 | E154: 油气储运工程本21级
A155: 153 | B155: 丁万成 | C155: 2021010700 | D155: 机械与储运工程学院 | E155: 油气储运工程本21级
A156: 154 | B156: 于小芊 | C156: 2021010656 | D156: 机械与储运工程学院 | E156: 油气储运工程本21级
A157: 155 | B157: 谢雨圻 | C157: 2021010654 | D157: 机械与储运工程学院 | E157: 油气储运工程本21级
A158: 156 | B158: 白云翔 | C158: 2021010727 | D158: 机械与储运工程学院 | E158: 油气储运工程本21级
A159: 157 | B159: 张子涵 | C159: 2021010715 | D159: 机械与储运工程学院 | E159: 油气储运工程本21级
A160: 158 | B160: 邢开源 | C160: 2021010898 | D160: 机械与储运工程学院 | E160: 能源与动力工程本21级
A161: 159 | B161: 陈晓林 | C161: 2021010928 | D161: 机械与储运工程学院 | E161: 能源与动力工程本21级
A162: 160 | B162: 金美萱 | C162: 2021010782 | D162: 机械与储运工程学院 | E162: 能源与动力工程本21级
A163: 161 | B163: 张文禹 | C163: 2021010891 | D163: 机械与储运工程学院 | E163: 能源与动力工程本21级
A164: 162 | B164: 陈致帆 | C164: 2021010899 | D164: 机械与储运工程学院 | E164: 机械设计制造及其自动化本21级
A165: 163 | B165: 芦连生 | C165: 2021010805 | D165: 机械与储运工程学院 | E165: 机械设计制造及其自动化本21级
A166: 164 | B166: 黄倩辉 | C166: 2021010965 | D166: 机械与储运工程学院 | E166: 机械设计制造及其自动化本21级
A167: 165 | B167: 甘遇霖 | C167: 2021010865 | D167: 机械与储运工程学院 | E167: 机械设计制造及其自动化本21级
A168: 166 | B168: 陈佳雨 | C168: 2021010779 | D168: 机械与储运工程学院 | E168: 机械设计制造及其自动化本21级
A169: 167 | B169: 唐晴 | C169: 2021010913 | D169: 机械与储运工程学院 | E169: 机械设计制造及其自动化本21级
A170: 168 | B170: 徐光政 | C170: 2021010843 | D170: 机械与储运工程学院 | E170: 机械设计制造及其自动化本21级
A171: 169 | B171: 景婉婷 | C171: 2021010846 | D171: 机械与储运工程学院 | E171: 机械设计制造及其自动化本21级
A172: 170 | B172: 刘昊洋 | C172: 2021010760 | D172: 机械与储运工程学院 | E172: 机器人工程本21级
A173: 171 | B173: 张苏杭 | C173: 2021010778 | D173: 机械与储运工程学院 | E173: 机器人工程本21级
A174: 172 | B174: 赵冰珂 | C174: 2020011003 | D174: 机械与储运工程学院 | E174: 油气储运工程本20级
A175: 173 | B175: 董一明 | C175: 2020011004 | D175: 机械与储运工程学院 | E175: 油气储运工程本20级
A176: 174 | B176: 高天青 | C176: 2020011008 | D176: 机械与储运工程学院 | E176: 油气储运工程本20级
A177: 175 | B177: 孙骁騉 | C177: 2020010975 | D177: 机械与储运工程学院 | E177: 油气储运工程本20级
A178: 176 | B178: 杨韧 | C178: 2020010968 | D178: 机械与储运工程学院 | E178: 油气储运工程本20级
A179: 177 | B179: 张梓睿 | C179: 2020010964 | D179: 机械与储运工程学院 | E179: 油气储运工程本20级
A180: 178 | B180: 胡小萌 | C180: 2020010934 | D180: 机械与储运工程学院 | E180: 油气储运工程本20级
A181: 179 | B181: 谭克扬 | C181: 2020010939 | D181: 机械与储运工程学院 | E181: 油气储运工程本20级
A182: 180 | B182: 蒋士博 | C182: 2020010935 | D182: 机械与储运工程学院 | E182: 油气储运工程本20级
A183: 181 | B183: 石金磊 | C183: 2020010782 | D183: 机械与储运工程学院 | E183: 能源与动力工程本20级
A184: 182 | B184: 王韵怡 | C184: 2020010766 | D184: 机械与储运工程学院 | E184: 能源与动力工程本20级
A185: 183 | B185: 石艺天 | C185: 2020010711 | D185: 机械与储运工程学院 | E185: 能源与动力工程本20级
A186: 184 | B186: 葛颖 | C186: 2020010663 | D186: 机械与储运工程学院 | E186: 能源与动力工程本20级
A187: 185 | B187: 杨溢 | C187: 2020010833 | D187: 机械与储运工程学院 | E187: 能源与动力工程本20级
A188: 186 | B188: 刘优优 | C188: 2019010763 | D188: 机械与储运工程学院 | E188: 能源与动力工程本20级
A189: 187 | B189: 王玮琪 | C189: 2020010834 | D189: 机械与储运工程学院 | E189: 能源与动力工程本20级
A190: 188 | B190: 詹昕月 | C190: 2020010665 | D190: 机械与储运工程学院 | E190: 过程装备与控制工程本20级
A191: 189 | B191: 赵文浩 | C191: 2020010895 | D191: 机械与储运工程学院 | E191: 过程装备与控制工程本20级
A192: 190 | B192: 张振轩 | C192: 2020010761 | D192: 机械与储运工程学院 | E192: 过程装备与控制工程本20级
A193: 191 | B193: 梁博文 | C193: 2020010850 | D193: 机械与储运工程学院 | E193: 过程装备与控制工程本20级
A194: 192 | B194: 陶安腾 | C194: 2020010925 | D194: 机械与储运工程学院 | E194: 过程装备与控制工程本20级
A195: 193 | B195: 王大善 | C195: 2020010793 | D195: 机械与储运工程学院 | E195: 过程装备与控制工程本20级
A196: 194 | B196: 项思文 | C196: 2020010698 | D196: 机械与储运工程学院 | E196: 机器人工程本20级
A197: 195 | B197: 王卓冉 | C197: 2020010799 | D197: 机械与储运工程学院 | E197: 机器人工程本20级
A198: 196 | B198: 李云龙 | C198: 2020010722 | D198: 机械与储运工程学院 | E198: 机械设计制造及其自动化本20级
A199: 197 | B199: 高奥运 | C199: 2020010708 | D199: 机械与储运工程学院 | E199: 机械设计制造及其自动化本20级
A200: 198 | B200: 高俊涛 | C200: 2020010803 | D200: 机械与储运工程学院 | E200: 机械设计制造及其自动化本20级
... 354 more rows

Sheet 优秀青年志愿者
A1: 中国石油大学2022-2023学年优秀青年志愿者
A2: 本科二年级以上在校生可参评，本学院在“志愿北京”录入志愿服务时长大于24小时的可参评，一等奖占符合条件人数的1%，二等奖占符合条件人数的4%。
A3: 序号 | B3: 姓名 | C3: 学号 | D3: 学历（本/研） | E3: 学院/研究院（全称） | F3: 专业年级 | G3: 奖学金等级（一等奖/二等奖）
A4: 1 | B4: 刘宗毅 | C4: 2021215034 | D4: 研 | E4: 地球科学学院 | F4: 地研21级 | G4: 一等奖
A5: 2 | B5: 王伟浩 | C5: 2022215076 | D5: 研 | E5: 地球科学学院 | F5: 地研22级 | G5: 一等奖
A6: 3 | B6: 张泽 | C6: 2021210064 | D6: 研 | E6: 地球科学学院 | F6: 地研21级 | G6: 一等奖
A7: 4 | B7: 郑伟 | C7: 2021215018 | D7: 研 | E7: 地球科学学院 | F7: 地研21级 | G7: 一等奖
A8: 5 | B8: 孙笑凡 | C8: 2021210110 | D8: 研 | E8: 地球科学学院 | F8: 地研21级 | G8: 一等奖
A9: 6 | B9: 曹科技 | C9: 2021010015 | D9: 本 | E9: 地球科学学院 | F9: 资源21级 | G9: 二等奖
A10: 7 | B10: 梅术星 | C10: 2021215044 | D10: 研 | E10: 地球科学学院 | F10: 地研21级 | G10: 二等奖
A11: 8 | B11: 王琛茜 | C11: 2021210119 | D11: 研 | E11: 地球科学学院 | F11: 地研21级 | G11: 二等奖
A12: 9 | B12: 王晓昊 | C12: 2022210085 | D12: 研 | E12: 地球科学学院 | F12: 地研22级 | G12: 二等奖
A13: 10 | B13: 杨荣彬 | C13: 2021010152 | D13: 本 | E13: 地球科学学院 | F13: 地质21级 | G13: 二等奖
A14: 11 | B14: 廖添 | C14: 2022210111 | D14: 研 | E14: 地球科学学院 | F14: 地研22级 | G14: 二等奖
A15: 12 | B15: 姜雨彤 | C15: 2021010037 | D15: 本 | E15: 地球科学学院 | F15: 资源21级 | G15: 二等奖
A16: 13 | B16: 骆佳瑞 | C16: 2021215043 | D16: 研 | E16: 地球科学学院 | F16: 地研21级 | G16: 二等奖
A17: 14 | B17: 李普一 | C17: 2021010165 | D17: 本 | E17: 地球科学学院 | F17: 资源21级 | G17: 二等奖
A18: 15 | B18: 马健斌 | C18: 2022210112 | D18: 研 | E18: 地球科学学院 | F18: 地研22级 | G18: 二等奖
A19: 16 | B19: 苏毅坤 | C19: 2022215038 | D19: 研 | E19: 地球科学学院 | F19: 地研22级 | G19: 二等奖
A20: 17 | B20: 范易辉 | C20: 2021010083 | D20: 本 | E20: 地球科学学院 | F20: 资源21级 | G20: 二等奖
A21: 18 | B21: 方子龙 | C21: 2022210023 | D21: 研 | E21: 地球科学学院 | F21: 地研22级 | G21: 二等奖
A22: 19 | B22: 李健凯 | C22: 2022010107 | D22: 本 | E22: 地球科学学院 | F22: 资源22级 | G22: 二等奖
A23: 20 | B23: 高添 | C23: 2022210020 | D23: 研 | E23: 地球科学学院 | F23: 地研22级 | G23: 二等奖
A24: 21 | B24: 梁壮 | C24: 2022210079 | D24: 研 | E24: 地球科学学院 | F24: 地研22级 | G24: 二等奖
A25: 22 | B25: 刘师晴 | C25: 2020010033 | D25: 本 | E25: 地球科学学院 | F25: 资源20级 | G25: 二等奖
A26: 23 | B26: 谭翔铭 | C26: 2022210080 | D26: 研 | E26: 地球科学学院 | F26: 地研22级 | G26: 二等奖
A27: 24 | B27: 柴浩博 | C27: 2022210088 | D27: 研 | E27: 地球科学学院 | F27: 地研22级 | G27: 二等奖
A28: 25 | B28: 杜健 | C28: 2022010017 | D28: 本 | E28: 地球科学学院 | F28: 资源22级 | G28: 二等奖
A29: 26 | B29: 张安迪 | C29: 2021010217 | D29: 本 | E29: 石油工程学院 | F29: 石油工程 2021 级 | G29: 一等奖
A30: 27 | B30: 李嘉林 | C30: 2022010203 | D30: 本 | E30: 石油工程学院 | F30: 石油工程2022 级 | G30: 一等奖
A31: 28 | B31: 王芊卉 | C31: 2021210319 | D31: 硕 | E31: 石油工程学院 | F31: 石油与天然气工程2021 级 | G31: 二等奖
A32: 29 | B32: 宫贺 | C32: 2022010292 | D32: 本 | E32: 石油工程学院 | F32: 石油工程2022 级 | G32: 二等奖
A33: 30 | B33: 高露茜 | C33: 2022010221 | D33: 本 | E33: 石油工程学院 | F33: 石油工程2022 级 | G33: 二等奖
A34: 31 | B34: 吴启 | C34: 2022010274 | D34: 本 | E34: 石油工程学院 | F34: 石油工程2022 级 | G34: 二等奖
A35: 32 | B35: 刘瑞恒 | C35: 2020010208 | D35: 本 | E35: 石油工程学院 | F35: 石油工程2020 级 | G35: 二等奖
A36: 33 | B36: 张春阳 | C36: 2021010302 | D36: 本 | E36: 石油工程学院 | F36: 石油工程 2021 级 | G36: 二等奖
A37: 34 | B37: 吴文秀 | C37: 2021010275 | D37: 本 | E37: 石油工程学院 | F37: 石油工程 2021 级 | G37: 二等奖
A38: 35 | B38: 解天睿 | C38: 2022010269 | D38: 本 | E38: 石油工程学院 | F38: 石油工程2022 级 | G38: 二等奖
A39: 36 | B39: 童嘉伟 | C39: 2022010346 | D39: 本 | E39: 石油工程学院 | F39: 石油工程2022 级 | G39: 二等奖
A40: 37 | B40: 谭鑫 | C40: 2022010272 | D40: 本 | E40: 石油工程学院 | F40: 石油工程2022 级 | G40: 二等奖
A41: 38 | B41: 林楚媛 | C41: 2021010397 | D41: 本 | E41: 化学工程与环境学院 | F41: 化工21级 | G41: 一等奖
A42: 39 | B42: 陈俊逸 | C42: 2022010512 | D42: 本 | E42: 化学工程与环境学院 | F42: 化工22级 | G42: 一等奖
A43: 40 | B43: 谷敏 | C43: 2021210503 | D43: 研 | E43: 化学工程与环境学院 | F43: 化工研21级 | G43: 一等奖
A44: 41 | B44: 杜卫博 | C44: 2021210546 | D44: 研 | E44: 化学工程与环境学院 | F44: 化工研21级 | G44: 一等奖
A45: 42 | B45: 杨坤 | C45: 2021210630 | D45: 研 | E45: 化学工程与环境学院 | F45: 化工研21级 | G45: 一等奖
A46: 43 | B46: 许振 | C46: 2021210639 | D46: 研 | E46: 化学工程与环境学院 | F46: 化工研21级 | G46: 一等奖
A47: 44 | B47: 何海平 | C47: 2021210633 | D47: 研 | E47: 化学工程与环境学院 | F47: 化工研21级 | G47: 二等奖
A48: 45 | B48: 贾晓浩 | C48: 2021210521 | D48: 研 | E48: 化学工程与环境学院 | F48: 化工研21级 | G48: 二等奖
A49: 46 | B49: 吴晓鹏 | C49: 2021010584 | D49: 本 | E49: 化学工程与环境学院 | F49: 环工21级 | G49: 二等奖
A50: 47 | B50: 曹炜曼 | C50: 2022010499 | D50: 本 | E50: 化学工程与环境学院 | F50: 化工22级 | G50: 二等奖
A51: 48 | B51: 张继德 | C51: 2021215377 | D51: 研 | E51: 化学工程与环境学院 | F51: 化工研21级 | G51: 二等奖
A52: 49 | B52: 刘世鑫 | C52: 2021010548 | D52: 本 | E52: 化学工程与环境学院 | F52: 环工21级 | G52: 二等奖
A53: 50 | B53: 马雪儿 | C53: 2022010588 | D53: 本 | E53: 化学工程与环境学院 | F53: 环科22级 | G53: 二等奖
A54: 51 | B54: 马颖 | C54: 2021010400 | D54: 本 | E54: 化学工程与环境学院 | F54: 化工21级 | G54: 二等奖
A55: 52 | B55: 周芹 | C55: 2022010367 | D55: 本 | E55: 化学工程与环境学院 | F55: 化工22级 | G55: 二等奖
A56: 53 | B56: 杨秋瑶 | C56: 2022010365 | D56: 本 | E56: 化学工程与环境学院 | F56: 能化22级 | G56: 二等奖
A57: 54 | B57: 张璐昕 | C57: 2022010366 | D57: 本 | E57: 化学工程与环境学院 | F57: 化工22级 | G57: 二等奖
A58: 55 | B58: 张姝瑶 | C58: 2022010364 | D58: 本 | E58: 化学工程与环境学院 | F58: 化工22级 | G58: 二等奖
A59: 56 | B59: 柴颖 | C59: 2022010614 | D59: 本 | E59: 化学工程与环境学院 | F59: 环科22级 | G59: 二等奖
A60: 57 | B60: 孙科 | C60: 2022010379 | D60: 本 | E60: 化学工程与环境学院 | F60: 化工22级 | G60: 二等奖
A61: 58 | B61: 刘睿扬 | C61: 2021010470 | D61: 本 | E61: 化学工程与环境学院 | F61: 能化21级 | G61: 二等奖
A62: 59 | B62: 孟婧涵 | C62: 2022010589 | D62: 本 | E62: 化学工程与环境学院 | F62: 环工22级 | G62: 二等奖
A63: 60 | B63: 张家齐 | C63: 2020010618 | D63: 本 | E63: 化学工程与环境学院 | F63: 能化21级 | G63: 二等奖
A64: 61 | B64: 解凌远 | C64: 2021310230 | D64: 研 | E64: 化学工程与环境学院 | F64: 化工研21级 | G64: 二等奖
A65: 62 | B65: 刘源兴 | C65: 2022010473 | D65: 本 | E65: 化学工程与环境学院 | F65: 能化22级 | G65: 二等奖
A66: 63 | B66: 张露 | C66: 2022010368 | D66: 本 | E66: 化学工程与环境学院 | F66: 能化22级 | G66: 二等奖
A67: 64 | B67: 季睿 | C67: 2022010402 | D67: 本 | E67: 化学工程与环境学院 | F67: 能化22级 | G67: 二等奖
A68: 65 | B68: 张毅钰 | C68: 2020010572 | D68: 本 | E68: 化学工程与环境学院 | F68: 化工20级 | G68: 二等奖
A69: 66 | B69: 邓姣 | C69: 22010464 | D69: 本 | E69: 化学工程与环境学院 | F69: 能化22级 | G69: 二等奖
A70: 67 | B70: 卢晗 | C70: 2020010391 | D70: 本 | E70: 化学工程与环境学院 | F70: 环科20级 | G70: 二等奖
A71: 68 | B71: 严臻睿 | C71: 2022010490 | D71: 本 | E71: 化学工程与环境学院 | F71: 化工22级 | G71: 二等奖
A72: 69 | B72: 林雪仪 | C72: 2022010796 | D72: 本 | E72: 机械与储运工程学院 | F72: 机器人工程22-1班 | G72: 一等奖
A73: 70 | B73: 葛保瑞 | C73: 2022010691 | D73: 本 | E73: 机械与储运工程学院 | F73: 油气储运工程22-2班 | G73: 一等奖
A74: 71 | B74: 张家玉 | C74: 2022215512 | D74: 研 | E74: 机械与储运工程学院 | F74: 机械研22-5班 | G74: 一等奖
A75: 72 | B75: 高雪 | C75: 2021210739 | D75: 研 | E75: 机械与储运工程学院 | F75: 动力工程及工程热物理2022级 | G75: 一等奖
A76: 73 | B76: 田顺 | C76: 2021215602 | D76: 研 | E76: 机械与储运工程学院 | F76: 能源动力2021级 | G76: 一等奖
A77: 74 | B77: 张新运 | C77: 2021010685 | D77: 本 | E77: 机械与储运工程学院 | F77: 油气储运工程21-2班 | G77: 一等奖
A78: 75 | B78: 李欣怡 | C78: 2022010824 | D78: 本 | E78: 机械与储运工程学院 | F78: 机械类22-2班 | G78: 一等奖
A79: 76 | B79: 于秀洋 | C79: 2022010846 | D79: 本 | E79: 机械与储运工程学院 | F79: 机器人工程22-1班 | G79: 一等奖
A80: 77 | B80: 雷宇乐 | C80: 2022010713 | D80: 本 | E80: 机械与储运工程学院 | F80: 油气储运工程22-3 | G80: 二等奖
A81: 78 | B81: 库迪来提·艾买提江 | C81: 2022010967 | D81: 本 | E81: 机械与储运工程学院 | F81: 2022级过程装备与控制工程 | G81: 二等奖
A82: 79 | B82: 黄洋 | C82: 2021010679 | D82: 本 | E82: 机械与储运工程学院 | F82: 储运21-2班 | G82: 二等奖
A83: 80 | B83: 杨溢 | C83: 2020010833 | D83: 本 | E83: 机械与储运工程学院 | F83: 2020能源与动力工程专业 | G83: 二等奖
A84: 81 | B84: 宋清爽 | C84: 2022010639 | D84: 本 | E84: 机械与储运工程学院 | F84: 油气储运工程22-1班 | G84: 二等奖
A85: 82 | B85: 杨欣悦 | C85: 2022010880 | D85: 本 | E85: 机械与储运工程学院 | F85: 过程装备与控制工程22-3班 | G85: 二等奖
A86: 83 | B86: 谈天资 | C86: 2022010914 | D86: 本 | E86: 机械与储运工程学院 | F86: 计算机科学与技术22-4班 | G86: 二等奖
A87: 84 | B87: 李浩廷 | C87: 2022010808 | D87: 本 | E87: 机械与储运工程学院 | F87: 机械22-2班 | G87: 二等奖
A88: 85 | B88: 张娟 | C88: 2022210803 | D88: 研 | E88: 机械与储运工程学院 | F88: 机械研22-4班 | G88: 二等奖
A89: 86 | B89: 范文栋 | C89: 2022010950 | D89: 本 | E89: 机械与储运工程学院 | F89: 2022级过程装备与控制工程 | G89: 二等奖
A90: 87 | B90: 白亚星 | C90: 2022215561 | D90: 研 | E90: 机械与储运工程学院 | F90: 2022级石油与天然气工程 | G90: 二等奖
A91: 88 | B91: 孙彤 | C91: 2022215559 | D91: 研 | E91: 机械与储运工程学院 | F91: 2022级石油与天然气工程 | G91: 二等奖
A92: 89 | B92: 李珊珊 | C92: 2022215562 | D92: 研 | E92: 机械与储运工程学院 | F92: 2022级石油与天然气工程 | G92: 二等奖
A93: 90 | B93: 李玉培 | C93: 2023215568 | D93: 研 | E93: 机械与储运工程学院 | F93: 2023级石油与天然气工程 | G93: 二等奖
A94: 91 | B94: 李鸿瑾 | C94: 2022215577 | D94: 研 | E94: 机械与储运工程学院 | F94: 2022级石油与天然气工程 | G94: 二等奖
A95: 92 | B95: 张超 | C95: 2022010805 | D95: 本 | E95: 机械与储运工程学院 | F95: 2022级机械设计及其自动化22-1班 | G95: 二等奖
A96: 93 | B96: 梁帅 | C96: 2022215609 | D96: 研 | E96: 机械与储运工程学院 | F96: 2022级动力工程 | G96: 二等奖
A97: 94 | B97: 杨文博 | C97: 2021010775 | D97: 本 | E97: 机械与储运工程学院 | F97: 2021级机械设计制造及其自动化 | G97: 二等奖
A98: 95 | B98: 冯英杰 | C98: 2022010952 | D98: 本 | E98: 机械与储运工程学院 | F98: 2022级机械设计及其自动化22-2班 | G98: 二等奖
A99: 96 | B99: 苏奕静 | C99: 2021010684 | D99: 本 | E99: 机械与储运工程学院 | F99: 2021级油气储运工程 | G99: 二等奖
A100: 97 | B100: 刘运羲 | C100: 2022010727 | D100: 本 | E100: 机械与储运工程学院 | F100: 2022级油气储运工程 | G100: 二等奖
A101: 98 | B101: 黄巍 | C101: 2022210758 | D101: 研 | E101: 机械与储运工程学院 | F101: 2022级动力工程及工程热物理 | G101: 二等奖
A102: 99 | B102: 徐嘉宁 | C102: 2021011005 | D102: 本 | E102: 机械与储运工程学院 | F102: 过程21-2班 | G102: 二等奖
A103: 100 | B103: 张博宇 | C103: 2021010811 | D103: 本 | E103: 机械与储运工程学院 | F103: 机械21-1班 | G103: 二等奖
A104: 101 | B104: 丁彬 | C104: 2022010838 | D104: 本 | E104: 机械与储运工程学院 | F104: 机械22-1班 | G104: 二等奖
A105: 102 | B105: 魏祎晨 | C105: 2020010931 | D105: 本 | E105: 机械与储运工程学院 | F105: 油气储运工程20-1班 | G105: 二等奖
A106: 103 | B106: 李渊 | C106: 2020011182 | D106: 本 | E106: 地球物理学院 | F106: 勘查技术与工程（测井）2020级 | G106: 一等奖
A107: 104 | B107: 文江 | C107: 2021011079 | D107: 本 | E107: 地球物理学院 | F107: 地球物理学2021级 | G107: 一等奖
A108: 105 | B108: 迟敏 | C108: 2022011093 | D108: 本 | E108: 地球物理学院 | F108: 勘查技术与工程（物探）2022级 | G108: 一等奖
A109: 106 | B109: 田芳淑 | C109: 2020011164 | D109: 本 | E109: 地球物理学院 | F109: 勘查技术与工程（物探）2020级 | G109: 二等奖
A110: 107 | B110: 刘朝灯 | C110: 2020011181 | D110: 本 | E110: 地球物理学院 | F110: 勘查技术与工程（测井）2020级 | G110: 二等奖
A111: 108 | B111: 刘子淳 | C111: 2020011179 | D111: 本 | E111: 地球物理学院 | F111: 地球物理学2020级 | G111: 二等奖
A112: 109 | B112: 崔文华 | C112: 2021011146 | D112: 本 | E112: 地球物理学院 | F112: 勘查技术与工程（物探）2021级 | G112: 二等奖
A113: 110 | B113: 潘盈伊 | C113: 2022010996 | D113: 本 | E113: 地球物理学院 | F113: 勘查技术与工程（测井）2022级 | G113: 二等奖
A114: 111 | B114: 马野 | C114: 2022011071 | D114: 本 | E114: 地球物理学院 | F114: 勘查技术与工程（测井）2022级 | G114: 二等奖
A115: 112 | B115: 庞润成 | C115: 2020011177 | D115: 本 | E115: 地球物理学院 | F115: 勘查技术与工程（测井）2020级 | G115: 二等奖
A116: 113 | B116: 姚嘉乐 | C116: 2022011128 | D116: 本 | E116: 地球物理学院 | F116: 勘查技术与工程（物探）2022级 | G116: 二等奖
A117: 114 | B117: 黄思涵 | C117: 2022011137 | D117: 本 | E117: 地球物理学院 | F117: 勘查技术与工程（物探）2022级 | G117: 二等奖
A118: 115 | B118: 徐文奇 | C118: 2021011137 | D118: 本 | E118: 地球物理学院 | F118: 勘查技术与工程（测井）2021级 | G118: 二等奖
A119: 116 | B119: 袁凤 | C119: 2022011058 | D119: 本 | E119: 地球物理学院 | F119: 勘查技术与工程（物探）2022级 | G119: 二等奖
A120: 117 | B120: 吴佳强 | C120: 2022011009 | D120: 本 | E120: 地球物理学院 | F120: 地球物理学2022级 | G120: 二等奖
A121: 118 | B121: 张男 | C121: 2022011072 | D121: 本 | E121: 地球物理学院 | F121: 勘查技术与工程（测井）2022级 | G121: 二等奖
A122: 119 | B122: 张彤 | C122: 2021011172 | D122: 本 | E122: 安全与海洋工程学院 | F122: 安全21-1班 | G122: 一等奖
A123: 120 | B123: 张雨涵 | C123: 2021011195 | D123: 本 | E123: 安全与海洋工程学院 | F123: 安全21-2班 | G123: 一等奖
A124: 121 | B124: 汪欣晗 | C124: 2021011192 | D124: 本 | E124: 安全与海洋工程学院 | F124: 安全21-2班 | G124: 一等奖
A125: 122 | B125: 任艺璇 | C125: 2020011194 | D125: 本 | E125: 安全与海洋工程学院 | F125: 海工20-1班 | G125: 二等奖
A126: 123 | B126: 许明昊 | C126: 2022011248 | D126: 本 | E126: 安全与海洋工程学院 | F126: 海工22-1班 | G126: 二等奖
A127: 124 | B127: 陈美桦 | C127: 2022011298 | D127: 本 | E127: 安全与海洋工程学院 | F127: 海工22-3班 | G127: 二等奖
A128: 125 | B128: 郭嘉懿 | C128: 2022011295 | D128: 本 | E128: 安全与海洋工程学院 | F128: 海工22-3班 | G128: 二等奖
A129: 126 | B129: 张峰坤 | C129: 2022011208 | D129: 本 | E129: 安全与海洋工程学院 | F129: 安全22-2班 | G129: 二等奖
A130: 127 | B130: 赵杨娟 | C130: 2022011190 | D130: 本 | E130: 安全与海洋工程学院 | F130: 安全22-2班 | G130: 二等奖
A131: 128 | B131: 游利娟 | C131: 2021011189 | D131: 本 | E131: 安全与海洋工程学院 | F131: 安全21-2班 | G131: 二等奖
A132: 129 | B132: 丁嘉欣 | C132: 2021011158 | D132: 本 | E132: 安全与海洋工程学院 | F132: 安全21-1班 | G132: 二等奖
A133: 130 | B133: 张璇 | C133: 2023211063 | D133: 研 | E133: 安全与海洋工程学院 | F133: 安全研23-1班 | G133: 二等奖
A134: 131 | B134: 吴彬彬 | C134: 2020011283 | D134: 本 | E134: 安全与海洋工程学院 | F134: 安全20-1班 | G134: 二等奖
A135: 132 | B135: 周炜超 | C135: 2021011203 | D135: 本 | E135: 安全与海洋工程学院 | F135: 安全21－2班 | G135: 二等奖
A136: 133 | B136: 江雨轩 | C136: 2020011193 | D136: 本 | E136: 安全与海洋工程学院 | F136: 海工20-1班 | G136: 二等奖
A137: 134 | B137: 周晓光 | C137: 2022011338 | D137: 本 | E137: 新能源与材料学院 | F137: 新能源22-1班 | G137: 一等奖
A138: 135 | B138: 林诺 | C138: 2022011361 | D138: 本 | E138: 新能源与材料学院 | F138: 新能源22-2班 | G138: 一等奖
A139: 136 | B139: 陈锐 | C139: 2022011360 | D139: 本 | E139: 新能源与材料学院 | F139: 新能源22-2班 | G139: 一等奖
A140: 137 | B140: 张林林 | C140: 2021211128 | D140: 研 | E140: 新能源与材料学院 | F140: 材料科学与工程21级 | G140: 一等奖
A141: 138 | B141: 王康 | C141: 2022215926 | D141: 研 | E141: 新能源与材料学院 | F141: 材料工程22级 | G141: 二等奖
A142: 139 | B142: 张晨曦 | C142: 2022011418 | D142: 本 | E142: 新能源与材料学院 | F142: 储能22-1班 | G142: 二等奖
A143: 140 | B143: 刘新阳 | C143: 2021011405 | D143: 本 | E143: 新能源与材料学院 | F143: 储能21-1班 | G143: 二等奖
A144: 141 | B144: 陈雨薇 | C144: 2022011321 | D144: 本 | E144: 新能源与材料学院 | F144: 新能源22-1班 | G144: 二等奖
A145: 142 | B145: 王芳芸 | C145: 2022010591 | D145: 本 | E145: 新能源与材料学院 | F145: 储能22-1班 | G145: 二等奖
A146: 143 | B146: 陈子煊 | C146: 2022011493 | D146: 本 | E146: 新能源与材料学院 | F146: 材料22-3班 | G146: 二等奖
A147: 144 | B147: 陶丽达 | C147: 2022011363 | D147: 本 | E147: 新能源与材料学院 | F147: 新能源22-2班 | G147: 二等奖
A148: 145 | B148: 郭霁霄 | C148: 2022012275 | D148: 本 | E148: 碳中和未来技术学院 | F148: 碳储22-1班 | G148: 二等奖
A149: 146 | B149: 左润国 | C149: 2021011342 | D149: 本 | E149: 碳中和未来技术学院 | F149: 储能21-1未来班 | G149: 二等奖
A150: 147 | B150: 张瀚月 | C150: 2022011397 | D150: 本 | E150: 新能源与材料学院 | F150: 储能22-1班 | G150: 二等奖
A151: 148 | B151: 苏珂璇 | C151: 2022011392 | D151: 本 | E151: 新能源与材料学院 | F151: 储能22-1班 | G151: 二等奖
A152: 149 | B152: 侯霁洋 | C152: 2021011446 | D152: 本 | E152: 新能源与材料学院 | F152: 材料21-1班 | G152: 二等奖
A153: 150 | B153: 岳峻玉 | C153: 2022011488 | D153: 本 | E153: 新能源与材料学院 | F153: 材料22-3班 | G153: 二等奖
A154: 151 | B154: 姜轶超 | C154: 2022011331 | D154: 本 | E154: 新能源与材料学院 | F154: 新能源22-1班 | G154: 二等奖
A155: 152 | B155: 严子雄 | C155: 2022011519 | D155: 本 | E155: 新能源与材料学院 | F155: 材料22-3班 | G155: 二等奖
A156: 153 | B156: 柏云天 | C156: 2022011340 | D156: 本 | E156: 新能源与材料学院 | F156: 新能源22-1班 | G156: 二等奖
A157: 154 | B157: 黄允恩 | C157: 2022011342 | D157: 本 | E157: 碳中和未来技术学院 | F157: 储能22-1未来班 | G157: 二等奖
A158: 155 | B158: 杨蔚 | C158: 2020011580 | D158: 本科 | E158: 信息科学与工程学院/人工智能学院 | F158: 自动化20-2班 | G158: 一等奖
A159: 156 | B159: 段瑞豪 | C159: 2023211211 | D159: 硕士 | E159: 信息科学与工程学院/人工智能学院 | F159: 信息研23-3班 | G159: 一等奖
A160: 157 | B160: 付成功 | C160: 2020011355 | D160: 本科 | E160: 信息科学与工程学院/人工智能学院 | F160: 计算机20-4班 | G160: 一等奖
A161: 158 | B161: 董玫君 | C161: 2020011545 | D161: 本科 | E161: 信息科学与工程学院/人工智能学院 | F161: 自动化20-1班 | G161: 一等奖
A162: 159 | B162: 马婉蓉 | C162: 2023211248 | D162: 硕士 | E162: 信息科学与工程学院/人工智能学院 | F162: 信息研23-1班 | G162: 一等奖
A163: 160 | B163: 罗锐 | C163: 2020011648 | D163: 本科 | E163: 信息科学与工程学院/人工智能学院 | F163: 电子20-2班 | G163: 一等奖
A164: 161 | B164: 王荣亮 | C164: 2021211268 | D164: 硕士 | E164: 信息科学与工程学院/人工智能学院 | F164: 信息研21-2班 | G164: 一等奖
A165: 162 | B165: 赵健崎 | C165: 2020211258 | D165: 硕士 | E165: 信息科学与工程学院/人工智能学院 | F165: 信息研21-2班 | G165: 一等奖
A166: 163 | B166: 张合辉 | C166: 2022211228 | D166: 硕士 | E166: 信息科学与工程学院/人工智能学院 | F166: 信息研22-1班 | G166: 一等奖
A167: 164 | B167: 陈欣岩 | C167: 2020011583 | D167: 本科 | E167: 信息科学与工程学院/人工智能学院 | F167: 自动化20-2班 | G167: 一等奖
A168: 165 | B168: 王卫凯 | C168: 2021010136 | D168: 本科 | E168: 信息科学与工程学院/人工智能学院 | F168: 计算机21-4班 | G168: 一等奖
A169: 166 | B169: 刁宇翔 | C169: 2021211229 | D169: 硕士 | E169: 信息科学与工程学院/人工智能学院 | F169: 信息研21-1班 | G169: 一等奖
A170: 167 | B170: 谭文涛 | C170: 2022211242 | D170: 硕士 | E170: 信息科学与工程学院/人工智能学院 | F170: 信息研22-1班 | G170: 一等奖
A171: 168 | B171: 李博宁 | C171: 2021011742 | D171: 本科 | E171: 信息科学与工程学院/人工智能学院 | F171: 自动化21-2班 | G171: 一等奖
A172: 169 | B172: 张熹 | C172: 2023216022 | D172: 硕士 | E172: 信息科学与工程学院/人工智能学院 | F172: 信息研23-5班 | G172: 一等奖
A173: 170 | B173: 田富升 | C173: 2021211245 | D173: 硕士 | E173: 信息科学与工程学院/人工智能学院 | F173: 信息研21-1班 | G173: 一等奖
A174: 171 | B174: 龚奕铭 | C174: 2020011564 | D174: 本科 | E174: 信息科学与工程学院/人工智能学院 | F174: 自动化20-1班 | G174: 一等奖
A175: 172 | B175: 邵子杭 | C175: 2022010900 | D175: 本科 | E175: 信息科学与工程学院/人工智能学院 | F175: 自动化22-3班 | G175: 一等奖
A176: 173 | B176: 于世隆 | C176: 2021011699 | D176: 本科 | E176: 信息科学与工程学院/人工智能学院 | F176: 自动化21-1班 | G176: 一等奖
A177: 174 | B177: 张子妍 | C177: 2022010068 | D177: 本科 | E177: 信息科学与工程学院/人工智能学院 | F177: 计算机22-4班 | G177: 一等奖
A178: 175 | B178: 王长浩 | C178: 2020010152 | D178: 本科 | E178: 信息科学与工程学院/人工智能学院 | F178: 计算机20-4班 | G178: 一等奖
A179: 176 | B179: 李雨彤 | C179: 2021011631 | D179: 本科 | E179: 信息科学与工程学院/人工智能学院 | F179: 电子21-1班 | G179: 一等奖
A180: 177 | B180: 万昊 | C180: 2022011546 | D180: 本科 | E180: 信息科学与工程学院/人工智能学院 | F180: 计算机22-1班 | G180: 一等奖
A181: 178 | B181: 李子翌 | C181: 2020010744 | D181: 本科 | E181: 信息科学与工程学院/人工智能学院 | F181: 计算机20-4班 | G181: 一等奖
A182: 179 | B182: 贾昊东 | C182: 2020011607 | D182: 本科 | E182: 信息科学与工程学院/人工智能学院 | F182: 自动化20-2班 | G182: 一等奖
A183: 180 | B183: 宋佳辉 | C183: 2021211708 | D183: 硕士 | E183: 信息科学与工程学院/人工智能学院 | F183: 人工智能硕21 | G183: 二等奖
A184: 181 | B184: 苏星源 | C184: 2022216067 | D184: 硕士 | E184: 信息科学与工程学院/人工智能学院 | F184: 信息研22-3班 | G184: 二等奖
A185: 182 | B185: 吴一凡 | C185: 2021211235 | D185: 硕士 | E185: 信息科学与工程学院/人工智能学院 | F185: 信息研21-1班 | G185: 二等奖
A186: 183 | B186: 杨逸萱 | C186: 2022216053 | D186: 硕士 | E186: 信息科学与工程学院/人工智能学院 | F186: 信息研22-4班 | G186: 二等奖
A187: 184 | B187: 车春丽 | C187: 2021011690 | D187: 本科 | E187: 信息科学与工程学院/人工智能学院 | F187: 自动化21-1班 | G187: 二等奖
A188: 185 | B188: 张锦鹏 | C188: 2023211249 | D188: 硕士 | E188: 信息科学与工程学院/人工智能学院 | F188: 信息研23-1班 | G188: 二等奖
A189: 186 | B189: 刘惠文 | C189: 2022010644 | D189: 本科 | E189: 信息科学与工程学院/人工智能学院 | F189: 计算机22-4班 | G189: 二等奖
A190: 187 | B190: 唐朝 | C190: 2020011636 | D190: 本科 | E190: 信息科学与工程学院/人工智能学院 | F190: 电子20-1班 | G190: 二等奖
A191: 188 | B191: 曹艺馨 | C191: 2020011683 | D191: 本科 | E191: 信息科学与工程学院/人工智能学院 | F191: 计算机20-1班 | G191: 二等奖
A192: 189 | B192: 刘志强 | C192: 2023211273 | D192: 硕士 | E192: 信息科学与工程学院/人工智能学院 | F192: 信息研23-2班 | G192: 二等奖
A193: 190 | B193: 闫欣妤 | C193: 2023211245 | D193: 硕士 | E193: 信息科学与工程学院/人工智能学院 | F193: 信息研23-1班 | G193: 二等奖
A194: 191 | B194: 郭欣悦 | C194: 2022011711 | D194: 本科 | E194: 信息科学与工程学院/人工智能学院 | F194: 自动化22-2班 | G194: 二等奖
A195: 192 | B195: 于茗旭 | C195: 2022011721 | D195: 本科 | E195: 信息科学与工程学院/人工智能学院 | F195: 自动化22-2班 | G195: 二等奖
A196: 193 | B196: 马楚雅 | C196: 2022010069 | D196: 本科 | E196: 信息科学与工程学院/人工智能学院 | F196: 自动化22-3班 | G196: 二等奖
A197: 194 | B197: 阿丽耶·艾海提 | C197: 2021011532 | D197: 本科 | E197: 信息科学与工程学院/人工智能学院 | F197: 计算机21-1班 | G197: 二等奖
A198: 195 | B198: 张曼月 | C198: 2020010416 | D198: 本科 | E198: 信息科学与工程学院/人工智能学院 | F198: 自动化20-3班 | G198: 二等奖
A199: 196 | B199: 邱金华 | C199: 2021010411 | D199: 本科 | E199: 信息科学与工程学院/人工智能学院 | F199: 自动化21-3班 | G199: 二等奖
A200: 197 | B200: 范闻轩 | C200: 2022211235 | D200: 硕士 | E200: 信息科学与工程学院/人工智能学院 | F200: 信息研22-1班 | G200: 二等奖
... 85 more rows

Sheet 文体活动先进个人
A1: 中国石油大学2022-2023学年文体活动先进个人
A2: 参加北京市（即省部级）及以上文艺或体育比赛，成绩优秀，为学校争得荣誉或为学校文体工作做出较大贡献的（文艺需获一、二、三等奖，体育需获前八名，体育特长生不参加此项评选）可获得此项荣誉。具体评选由文体学院负责，大学生艺术团获奖部分由校团委负责。
A5: 序号 | B5: 姓名 | C5: 学号 | D5: 学历（本/研） | E5: 学院/研究院 | F5: 专业年级 | G5: 赛事名称 | H5: 赛事级别 | I5: 项目 | J5: 获奖名次、等级
A6: 1 | B6: 钟晓艺 | C6: 2020010575 | D6: 本科 | E6: 化学工程与环境学院 | F6: 能源化学工程20-1 | G6: 2022年中国大学生艺术体操线上赛 | H6: 国家级 | I6: 个人带 | J6: 第一名
A7: 2 | B7: 钟晓艺 | C7: 2020010575 | D7: 本科 | E7: 化学工程与环境学院 | F7: 能源化学工程20-1 | G7: 2022年中国大学生艺术体操线上赛 | I7: 个人圈 | J7: 第一名
A8: 3 | B8: 钟晓艺 | C8: 2020010575 | D8: 本科 | E8: 化学工程与环境学院 | F8: 能源化学工程20-1 | I8: 个人球 | J8: 第四名
A9: 4 | B9: 钟晓艺 | C9: 2020010575 | D9: 本科 | E9: 化学工程与环境学院 | F9: 能源化学工程20-1 | I9: 个人全能 | J9: 第四名
A10: 5 | B10: 钟晓艺 | C10: 2020010575 | D10: 本科 | E10: 化学工程与环境学院 | F10: 能源化学工程20-1 | G10: 2023年中国大学生艺术体操锦标赛 | I10: 个人带 | J10: 第四名
A11: 6 | B11: 钟晓艺 | C11: 2020010575 | D11: 本科 | E11: 化学工程与环境学院 | F11: 能源化学工程20-1 | I11: 个人球 | J11: 第六名
A12: 7 | B12: 钟晓艺 | C12: 2020010575 | D12: 本科 | E12: 化学工程与环境学院 | F12: 能源化学工程20-1 | I12: 个人全能 | J12: 第八名
A13: 8 | B13: 钟晓艺 | C13: 2020010575 | D13: 本科 | E13: 化学工程与环境学院 | F13: 能源化学工程20-1 | G13: 首都高等学校第43届艺术体操比赛 | H13: 省部级 | I13: 个人圈 | J13: 第六名
A14: 9 | B14: 任开颜 | C14: 2019012138 | D14: 本科 | E14: 经济管理学院 | F14: 信息管理与信息系统2019级 | G14: 2022年中国大学生艺术体操线上赛 | H14: 国家级 | I14: 个人绳 | J14: 第一名
A15: 10 | B15: 任开颜 | C15: 2019012138 | D15: 本科 | E15: 经济管理学院 | F15: 信息管理与信息系统2019级 | I15: 个人全能 | J15: 第一名
A16: 11 | B16: 任开颜 | C16: 2019012138 | D16: 本科 | E16: 经济管理学院 | F16: 信息管理与信息系统2019级 | I16: 个人圈 | J16: 第二名
A17: 12 | B17: 任开颜 | C17: 2019012138 | D17: 本科 | E17: 经济管理学院 | F17: 信息管理与信息系统2019级 | I17: 个人球 | J17: 第三名
A18: 13 | B18: 任开颜 | C18: 2019012138 | D18: 本科 | E18: 经济管理学院 | F18: 信息管理与信息系统2019级 | G18: 2023年中国大学生艺术体操锦标赛 | I18: 个人绳 | J18: 第一名
A19: 14 | B19: 任开颜 | C19: 2019012138 | D19: 本科 | E19: 经济管理学院 | F19: 信息管理与信息系统2019级 | I19: 个人圈 | J19: 第二名
A20: 15 | B20: 任开颜 | C20: 2019012138 | D20: 本科 | E20: 经济管理学院 | F20: 信息管理与信息系统2019级 | I20: 个人全能 | J20: 第二名
A21: 16 | B21: 任开颜 | C21: 2019012138 | D21: 本科 | E21: 经济管理学院 | F21: 信息管理与信息系统2019级 | G21: 首都高等学校第43届艺术体操比赛 | H21: 省部级 | I21: 个人球 | J21: 第三名
A22: 17 | B22: 任开颜 | C22: 2019012138 | D22: 本科 | E22: 经济管理学院 | F22: 信息管理与信息系统2019级 | I22: 个人圈 | J22: 第五名
A23: 18 | B23: 单美怡 | C23: 2021011337 | D23: 本科 | E23: 新能源与材料学院 | F23: 新能源21-1 | G23: 2022-2023全国啦啦操线上比赛（天津站） | H23: 国家级 | I23: 公开青年丙组-集体花球自选动作 | J23: 第三名
A24: 19 | B24: 任开颜 | C24: 2019012138 | D24: 本科 | E24: 经济管理学院 | F24: 信息管理与信息系统2019级
A25: 20 | B25: 王怡 | C25: 2023210653 | D25: 研究生 | E25: 化学工程与环境学院 | F25: 环境科学与工程研2023级
A26: 21 | B26: 孙洋 | C26: 2023310251 | D26: 研究生 | E26: 化学工程与环境学院 | F26: 化工博23级
A27: 22 | B27: 夏雪儿 | C27: 2020011340 | D27: 本科 | E27: 安全与海洋工程学院 | F27: 安全工程2020级
A28: 23 | B28: 张淑媛 | C28: 2020011652 | D28: 本科 | E28: 信息科学与工程学院/人工智能学院 | F28: 电子信息工程2020级
A29: 24 | B29: 买尔阿巴·艾海提 | C29: 2021012240 | D29: 本科 | E29: 外国语学院 | F29: 英语21-3
A30: 25 | B30: 李娜 | C30: 2020010172 | D30: 本科 | E30: 地球科学学院 | F30: 资源勘查工程2020级
A31: 26 | B31: 隆琳茜 | C31: 2020010141 | D31: 本科 | E31: 地球科学学院 | F31: 资源勘查工程2020级
A32: 27 | B32: 钟晓艺 | C32: 2020010575 | D32: 本科 | E32: 化学工程与环境学院 | F32: 能源化学工程20-1
A33: 28 | B33: 马晨宇 | C33: 2020011922 | D33: 本科 | E33: 经济管理学院 | F33: 能经20-1班
A34: 29 | B34: 蔡金霏 | C34: 2020012070 | D34: 本科 | E34: 经济管理学院 | F34: 会计21-2班
A35: 30 | B35: 李云菲 | C35: 2020012024 | D35: 本科 | E35: 经济管理学院 | F35: 会计2020级
A36: 31 | B36: 张伊果 | C36: 2022012103 | D36: 本科 | E36: 马克思主义学院 | F36: 思想政治教育22级1班
A37: 32 | B37: 王奕欢 | C37: 2022011961 | D37: 本科 | E37: 经济管理学院 | F37: 会计2022级1班
A38: 33 | B38: 常淼轩 | C38: 2022010337 | D38: 本科 | E38: 石油工程学院 | F38: 石工2022级
A39: 34 | B39: 孙悦 | C39: 2020010118 | D39: 本科 | E39: 经济管理学院 | F39: 营销2020级
A40: 35 | B40: 宋少鹏 | C40: 2020011805 | D40: 本科 | E40: 理学院 | F40: 统计学2020级
A41: 36 | B41: 单美怡 | C41: 2021011337 | D41: 本科 | E41: 新能源与材料学院 | F41: 新能源21-1 | G41: 2023年首都高等学校啦啦操比赛 | H41: 省部级 | I41: 甲组舞蹈啦啦操-集体花球自选动作 | J41: 第四名
A42: 37 | B42: 任开颜 | C42: 2019012138 | D42: 本科 | E42: 经济管理学院 | F42: 信息管理与信息系统2019级
A43: 38 | B43: 王怡 | C43: 2023210653 | D43: 研究生 | E43: 化学工程与环境学院 | F43: 环境科学与工程研23级
A44: 39 | B44: 孙洋 | C44: 2023310251 | D44: 研究生 | E44: 化学工程与环境学院 | F44: 化工博23班
A45: 40 | B45: 夏雪儿 | C45: 2020011340 | D45: 本科 | E45: 安全与海洋工程学院 | F45: 安全工程2020级
A46: 41 | B46: 张淑媛 | C46: 2020011652 | D46: 本科 | E46: 信息科学与工程学院/人工智能学院 | F46: 电子信息工程2020级
A47: 42 | B47: 买尔阿巴·艾海提 | C47: 2021012240 | D47: 本科 | E47: 外国语学院 | F47: 英语21-3
A48: 43 | B48: 李娜 | C48: 2020010172 | D48: 本科 | E48: 地球科学学院 | F48: 资源勘查工程2020级
A49: 44 | B49: 隆琳茜 | C49: 2020010141 | D49: 本科 | E49: 地球科学学院 | F49: 资源勘查工程2020级
A50: 45 | B50: 钟晓艺 | C50: 2020010575 | D50: 本科 | E50: 化学工程与环境学院 | F50: 能源化学工程20-1
A51: 46 | B51: 马晨宇 | C51: 2020011922 | D51: 本科 | E51: 经济管理学院 | F51: 能经20-1班
A52: 47 | B52: 蔡金霏 | C52: 2020012070 | D52: 本科 | E52: 经济管理学院 | F52: 会计21-2班
A53: 48 | B53: 李云菲 | C53: 2020012024 | D53: 本科 | E53: 经济管理学院 | F53: 会计2020级
A54: 49 | B54: 张伊果 | C54: 2022012103 | D54: 本科 | E54: 马克思主义学院 | F54: 思想政治教育22级1班
A55: 50 | B55: 王奕欢 | C55: 2022011961 | D55: 本科 | E55: 经济管理学院 | F55: 会计2022级
A56: 51 | B56: 常淼轩 | C56: 2022010337 | D56: 本科 | E56: 石油工程学院 | F56: 石工2022级
A57: 52 | B57: 孙悦 | C57: 2020010118 | D57: 本科 | E57: 经济管理学院 | F57: 营销2020级
A58: 53 | B58: 宋少鹏 | C58: 2020011805 | D58: 本科 | E58: 理学院 | F58: 统计学2020级
A59: 54 | B59: 单美怡 | C59: 2021011337 | D59: 本科 | E59: 新能源与材料学院 | F59: 新能源21-1 | G59: 2022-2023全国啦啦操线上比赛（天津站） | H59: 国家级 | I59: 公开青年丙组-集体技巧（3级）自选动作-混合 | J59: 第二名
A60: 55 | B60: 孔嘉裕 | C60: 2020011930 | D60: 本科 | E60: 经济管理学院 | F60: 金融20-1班
A61: 56 | B61: 张志伟 | C61: 2021010897 | D61: 本科 | E61: 机械与储运工程学院 | F61: 能动21-1班
A62: 57 | B62: 张淑媛 | C62: 2020011652 | D62: 本科 | E62: 信息科学与工程学院/人工智能学院 | F62: 电子信息工程2020级
A63: 58 | B63: 左进府 | C63: 2020011279 | D63: 本科 | E63: 安全与海洋工程学院 | F63: 2020海洋油气工程
A64: 59 | B64: 鞠震 | C64: 2020010055 | D64: 本科 | E64: 地球科学学院 | F64: 地质20-1班
A65: 60 | B65: 任开颜 | C65: 2019012138 | D65: 本科 | E65: 经济管理学院 | F65: 信息管理与信息系统2019级
A66: 61 | B66: 杨景政 | C66: 2020012004 | D66: 本科 | E66: 经济管理学院 | F66: 信息管理与信息系统2020级
A67: 62 | B67: 苟祖康 | C67: 2021011086 | D67: 本科 | E67: 地球物理学院 | F67: 物探21-1班
A68: 63 | B68: 邓京浩 | C68: 2021011312 | D68: 本科 | E68: 安全与海洋工程学院 | F68: 2021海洋油气工程
A69: 64 | B69: 曹佳俊 | C69: 2021011320 | D69: 本科 | E69: 安全与海洋工程学院 | F69: 2021海洋油气工程
A70: 65 | B70: 李佳诺 | C70: 2021011423 | D70: 本科 | E70: 新能源与材料学院 | F70: 储能21-1班
A71: 66 | B71: 李昊展 | C71: 2021011746 | D71: 本科 | E71: 信息科学与工程/人工智能学院 | F71: 自动化21-2班
A72: 67 | B72: 路阳 | C72: 2020010561 | D72: 本科 | E72: 化学工程与环境学院 | F72: 化工20-2班
A73: 68 | B73: 彭先坤 | C73: 2021011737 | D73: 本科 | E73: 信息科学与工程/人工智能学院 | F73: 自动化21-2班
A74: 69 | B74: 李炯恒 | C74: 2021011229 | D74: 本科 | E74: 安全与海洋工程学院 | F74: 安全工程21-3
A75: 70 | B75: 买尔阿巴·艾海提 | C75: 2021012240 | D75: 本科 | E75: 外国语学院 | F75: 英语21-3
A76: 71 | B76: 张超 | C76: 2020010547 | D76: 本科 | E76: 化学工程与环境学院 | F76: 能化20-2班
A77: 72 | B77: 成忠浩 | C77: 2022011007 | D77: 本科 | E77: 地球物理学院 | F77: 物探22-1班
A78: 73 | B78: 李慧琳 | C78: 2022011943 | D78: 本科 | E78: 经济管理学院 | F78: 会计22-1班
A79: 74 | B79: 李德伟 | C79: 2020010042 | D79: 本科 | E79: 地球科学学院 | F79: 地质学20-1班
A80: 75 | B80: 叶洪剑 | C80: 2022010682 | D80: 本科 | E80: 机械与储运工程学院 | F80: 油气储运专业22级2班
A81: 76 | B81: 张汝伟 | C81: 2020011277 | D81: 本科 | E81: 安全与海洋工程学院 | F81: 2020海洋油气工程
A82: 77 | B82: 武鑫雪 | C82: 2022010999 | D82: 本科 | E82: 地球物理学院 | F82: 物探22-1班
A83: 78 | B83: 单美怡 | C83: 2021011337 | D83: 本科 | E83: 新能源与材料学院 | F83: 新能源21-1 | G83: 2023年首都高等学校啦啦操比赛 | H83: 省部级 | I83: 甲组技巧啦啦操-集体（3级以上）自选动作 | J83: 第一名
A84: 79 | B84: 孔嘉裕 | C84: 2020011930 | D84: 本科 | E84: 经济管理学院 | F84: 金融20-1班
A85: 80 | B85: 张志伟 | C85: 2021010897 | D85: 本科 | E85: 机械与储运工程学院 | F85: 能动21-1班
A86: 81 | B86: 张淑媛 | C86: 2020011652 | D86: 本科 | E86: 信息科学与工程学院/人工智能学院 | F86: 电子信息工程2020级
A87: 82 | B87: 左进府 | C87: 2020011279 | D87: 本科 | E87: 安全与海洋工程学院 | F87: 2020海洋油气工程
A88: 83 | B88: 鞠震 | C88: 2020010055 | D88: 本科 | E88: 地球科学学院 | F88: 地质20-1班
A89: 84 | B89: 任开颜 | C89: 2019012138 | D89: 本科 | E89: 经济管理学院 | F89: 信息管理与信息系统2019级
A90: 85 | B90: 杨景政 | C90: 2020012004 | D90: 本科 | E90: 经济管理学院 | F90: 信息管理与信息系统2020级
A91: 86 | B91: 苟祖康 | C91: 2021011086 | D91: 本科 | E91: 地球物理学院 | F91: 物探21-1班
A92: 87 | B92: 邓京浩 | C92: 2021011312 | D92: 本科 | E92: 安全与海洋工程学院 | F92: 2021海洋油气工程
A93: 88 | B93: 曹佳俊 | C93: 2021011320 | D93: 本科 | E93: 安全与海洋工程学院 | F93: 2021海洋油气工程
A94: 89 | B94: 李佳诺 | C94: 2021011423 | D94: 本科 | E94: 新能源与材料学院 | F94: 储能21-1班
A95: 90 | B95: 李昊展 | C95: 2021011746 | D95: 本科 | E95: 信息科学与工程/人工智能学院 | F95: 自动化21-2班
A96: 91 | B96: 路阳 | C96: 2020010561 | D96: 本科 | E96: 化学工程与环境学院 | F96: 化工20-2班
A97: 92 | B97: 彭先坤 | C97: 2021011737 | D97: 本科 | E97: 信息科学与工程/人工智能学院 | F97: 自动化21-2班
A98: 93 | B98: 李炯恒 | C98: 2021011229 | D98: 本科 | E98: 安全与海洋工程学院 | F98: 安全工程21-3
A99: 94 | B99: 买尔阿巴·艾海提 | C99: 2021012240 | D99: 本科 | E99: 外国语学院 | F99: 英语21-3
A100: 95 | B100: 张超 | C100: 2020010547 | D100: 本科 | E100: 化学工程与环境学院 | F100: 能化20-2班
A101: 96 | B101: 成忠浩 | C101: 2022011007 | D101: 本科 | E101: 地球物理学院 | F101: 物探22-1班
A102: 97 | B102: 李慧琳 | C102: 2022011943 | D102: 本科 | E102: 经济管理学院 | F102: 会计22-1班
A103: 98 | B103: 李德伟 | C103: 2020010042 | D103: 本科 | E103: 地球科学学院 | F103: 地质学20-1班
A104: 99 | B104: 叶洪剑 | C104: 2022010682 | D104: 本科 | E104: 机械与储运工程学院 | F104: 油气储运专业22级2班
A105: 100 | B105: 张汝伟 | C105: 2020011277 | D105: 本科 | E105: 安全与海洋工程学院 | F105: 2020海洋油气工程
A106: 101 | B106: 武鑫雪 | C106: 2022010999 | D106: 本科 | E106: 地球物理学院 | F106: 物探22-1班
A107: 102 | B107: 郑同 | C107: 2020011859 | D107: 本科 | E107: 理学院 | F107: 应用化学 20-1班 | G107: 首都高等学校第七届健身舞蹈比赛 | H107: 省部级 | I107: 街舞《2020年大体协街舞推广成品舞locking风格》小集体 | J107: 第四名
A108: 103 | B108: 陈宇轩 | C108: 2020011196 | D108: 本科 | E108: 安全与海洋工程学院 | F108: 海工20-1班
A109: 104 | B109: 魏博轩 | C109: 2021010480 | D109: 本科 | E109: 化学工程与环境学院 | F109: 化工21-1班
A110: 105 | B110: 刘铭菲 | C110: 2022011523 | D110: 本科 | E110: 信息科学与工程/人工智能学院 | F110: 计算机科学与技术22-1班
A111: 106 | B111: 李麟 | C111: 2021011575 | D111: 本科 | E111: 信息科学与工程/人工智能学院 | F111: 计算机科学与技术21-2班 | G111: 首都高等学校第七届健身舞蹈比赛 | H111: 省部级 | I111: 街舞《2020年大体协街舞推广成品舞street jazz风格》小集体 | J111: 第六名
A112: 107 | B112: 胡秀琳 | C112: 2021011562 | D112: 本科 | E112: 信息科学与工程/人工智能学院 | F112: 计算机科学与技术21-2班
A113: 108 | B113: 张馨月 | C113: 2021011945 | D113: 本科 | E113: 经济管理学院 | F113: 能经21-1
A114: 109 | B114: 韦欣宜 | C114: 2022011948 | D114: 本科 | E114: 经济管理学院 | F114: 营销22-1
A115: 110 | B115: 洪木英 | C115: 2022011973 | D115: 本科 | E115: 经济管理学院 | F115: 会计22-1班
A116: 111 | B116: 钮缨雪 | C116: 2022010493 | D116: 本科 | E116: 化学工程与环境学院 | F116: 能化22-2班 | G116: 首都高等学校第七届健身舞蹈比赛 | H116: 省部级 | I116: 排舞集体项目规定《骁》小集体 | J116: 第五名
A117: 112 | B117: 罗文琪 | C117: 2021012039 | D117: 本科 | E117: 经济管理学院 | F117: 会计21-1
A118: 113 | B118: 张瀚月 | C118: 2022011397 | D118: 本科 | E118: 新能源与材料学院 | F118: 储能科学与工程22-1班
A119: 114 | B119: 赵蕊 | C119: 2022011932 | D119: 本科 | E119: 经济管理学院 | F119: 市场营销22-1
A120: 115 | B120: 黄圣婕 | C120: 2022011933 | D120: 本科 | E120: 经济管理学院 | F120: 市场营销22-1
A121: 116 | B121: 樊宇星 | C121: 2022011424 | D121: 本科 | E121: 新能源与材料学院 | F121: 储能22-1班
A122: 117 | B122: 闫佳敏 | C122: 2022012143 | D122: 本科 | E122: 马克思主义学院 | F122: 思想政治教育2022级
A123: 118 | B123: 吴在玥 | C123: 2022012134 | D123: 本科 | E123: 马克思主义学院 | F123: 思想政治教育2022级
A124: 119 | B124: 杨锐 | C124: 2022012139 | D124: 本科 | E124: 马克思主义学院 | F124: 思想政治教育2022级
A125: 120 | B125: 武妤珈 | C125: 2021010248 | D125: 本科 | E125: 石油工程学院 | F125: 石工21-3 | G125: 首都高等学校第43届健美操比赛 | H125: 省部级 | I125: 有氧踏板规定动作 | J125: 第三名
A126: 121 | B126: 任开颜 | C126: 2019012138 | D126: 本科 | E126: 经济管理学院 | F126: 信息管理与信息系统2019级
A127: 122 | B127: 徐方圆 | C127: 2019010589 | D127: 本科 | E127: 化学工程与环境学院 | F127: 环科19-2班
A128: 123 | B128: 孙洋 | C128: 2023310251 | D128: 研究生 | E128: 化学工程与环境学院 | F128: 化工博23班
A129: 124 | B129: 王怡 | C129: 2023210653 | D129: 研究生 | E129: 化学工程与环境学院 | F129: 环境科学与工程研23级
A130: 125 | B130: 蔡金霏 | C130: 2020012070 | D130: 本科 | E130: 经济管理学院 | F130: 会计21-2班
A131: 126 | B131: 李娜 | C131: 2020010172 | D131: 本科 | E131: 地球科学学院 | F131: 资源勘查工程2020级
A132: 127 | B132: 隆琳茜 | C132: 2020010141 | D132: 本科 | E132: 地球科学学院 | F132: 资源勘查工程2020级
A133: 128 | B133: 王怡 | C133: 2021210653 | D133: 研究生 | E133: 化学工程与环境学院 | F133: 环境科学与工程2023级 | G133: 首都高等学校第43届健美操比赛 | H133: 省部级 | I133: 健美操技能等级规定套路 | J133: 第五名
A134: 129 | B134: 任开颜 | C134: 2019012138 | D134: 本科 | E134: 经济管理学院 | F134: 信息管理与信息系统2019级
A135: 130 | B135: 徐方圆 | C135: 2019010589 | D135: 本科 | E135: 化学工程与环境学院 | F135: 环科19-2班
A136: 131 | B136: 孙洋 | C136: 2023310251 | D136: 研究生 | E136: 化学工程与环境学院 | F136: 化工博23班
A137: 132 | B137: 夏雪儿 | C137: 2020011340 | D137: 本科 | E137: 安全与海洋工程学院 | F137: 安全工程2020级
A138: 133 | B138: 张淑媛 | C138: 2020011652 | D138: 本科 | E138: 信息科学与工程学院/人工智能学院 | F138: 电子信息工程2020级
A139: 134 | B139: 李云菲 | C139: 2020012024 | D139: 本科 | E139: 经济管理学院 | F139: 会计2020级
A140: 135 | B140: 鞠震 | C140: 2020010055 | D140: 本科 | E140: 地球科学学院 | F140: 地质20-1
A141: 136 | B141: 侯霁洋 | C141: 2021011446 | D141: 本科 | E141: 新能源与材料学院 | F141: 材料21—1班
A142: 137 | B142: 孔嘉裕 | C142: 2020011930 | D142: 本科 | E142: 经济管理学院 | F142: 金融20-1班
A143: 138 | B143: 马鸿伟 | C143: 2022010265 | D143: 本科 | E143: 石油工程学院 | F143: 2022石油工程3班 | G143: 首都高等学校第一届体育运动大会 | H143: 省部级 | I143: 触式橄榄球 | J143: 第七名
A144: 139 | B144: 李润桐 | C144: 2021010375 | D144: 本科 | E144: 化学工程与环境学院 | F144: 化工21-2班
A145: 140 | B145: 赵静怡 | C145: 2022012164 | D145: 本科 | E145: 外国语学院 | F145: 2022英语
A146: 141 | B146: 周铃 | C146: 2022011027 | D146: 本科 | E146: 地球物理学院 | F146: 2022测井
A147: 142 | B147: 次旺诺桑 | C147: 2019012129 | D147: 本科 | E147: 经济管理学院 | F147: 会计19-2班
A148: 143 | B148: 朱正阳 | C148: 2021011272 | D148: 本科 | E148: 信息科学与工程学院 | F148: 2021电子2班
A149: 144 | B149: 刘朝旭 | C149: 2021010084 | D149: 本科 | E149: 信息科学与工程学院 | F149: 2021电子一班
A150: 145 | B150: 叶斯波力·叶尔生 | C150: 2022010505 | D150: 本科 | E150: 化学工程与环境学院 | F150: 能源化学工程22-2
A151: 146 | B151: 胡什塔尔·巴合提别克 | C151: 2022012305 | D151: 本科 | E151: 石油工程学院 | F151: 2022石油工程
A152: 147 | B152: 张席地 | C152: 2022010506 | D152: 本科 | E152: 化学工程与环境 | F152: 2022化学工程与工艺3班
A153: 148 | B153: 林才涵 | C153: 2022011237 | D153: 本科 | E153: 安全与海洋工程 | F153: 2022安全工程3班
A154: 149 | B154: 叶洪剑 | C154: 2022010682 | D154: 本科 | E154: 机械与储运工程学院 | F154: 2022油气储运二班
A155: 150 | B155: 姚泽宇 | C155: 2022011252 | D155: 本科 | E155: 安全与海洋工程学院 | F155: 2022海洋油气工程一班
A156: 151 | B156: 马玉润 | C156: 2022011226 | D156: 本科 | E156: 安全与海洋工程学院 | F156: 2022安全工程3班
A157: 152 | B157: 叶斯哈提·金斯别克 | C157: 2022010149 | D157: 本科 | E157: 地球科学学院 | F157: 2022资源一班
A158: 153 | B158: 崔博翔 | C158: 2022012035 | D158: 本科 | E158: 经济管理学院 | F158: 2022会计二班
A159: 154 | B159: 马梦琪 | C159: 2022310132 | D159: 研 | E159: 石油工程学院 | F159: 石油与天然气工程2022级 | G159: 2022年中国大学生体育舞蹈（团体舞）线上赛 | H159: 国家级 | I159: 甲组六人创编舞RCJ-1 | J159: 二等奖
A160: 155 | B160: 刘姝羽 | C160: 2020210649 | D160: 研 | E160: 化学工程与环境学院 | F160: 环境科学与工程2020级
A161: 156 | B161: 陈乐蓓 | C161: 2021211051 | D161: 研 | E161: 安全与海洋工程学院 | F161: 安全科学与工程2021级
A162: 157 | B162: 温睿阳 | C162: 2021012052 | D162: 本 | E162: 经济管理学院 | F162: 财务管理2021级
A163: 158 | B163: 张裕敏 | C163: 2021011831 | D163: 本 | E163: 理学院 | F163: 应用化学2021级
A164: 159 | B164: 邹政华 | C164: 2020012136 | D164: 本 | E164: 经济管理学院 | F164: 会计2020级
A165: 160 | B165: 刘姝羽 | C165: 2020210649 | D165: 研 | E165: 化学工程学院 | F165: 环境科学与工程2020级 | G165: “风华杯”2023精英巡回赛（北京站） | H165: 省部级 | I165: 大学生单人C组L | J165: 第二名
A166: 161 | B166: 陈乐蓓 | C166: 2021211051 | D166: 研 | E166: 安全与海洋工程学院 | F166: 安全科学与工程2021级 | I166: 大学生单人B组L | J166: 第二名
A167: 162 | B167: 李玉培 | C167: 2023215568 | D167: 研 | E167: 机械与储运工程学院 | F167: 石油与天然气工程2023级 | I167: 大学生单人A组L | J167: 第一名
A168: 163 | B168: 王嘉曼 | C168: 2023211367 | D168: 研 | E168: 理学院 | F168: 化学工程与技术2023级 | I168: 大学生单人A组L | J168: 第二名
A169: 164 | B169: 王嘉曼 | C169: 2023211367 | D169: 研 | E169: 理学院 | F169: 化学工程与技术2023级 | I169: 大学生D组L | J169: 第二名
A170: 165 | B170: 关谦羿 | C170: 2021210721 | D170: 研 | E170: 机械与储运工程学院 | F170: 机械工程2021级 | G170: “风华杯”2024精英巡回赛（北京站） | I170: 大学生D组L | J170: 第二名
A171: 166 | B171: 刘姝羽 | C171: 2020210649 | D171: 研 | E171: 化学工程与环境学院 | F171: 环境科学与工程2020级 | G171: 首都高等学校第一届体育运动大会暨首都高等学校第十四届体育舞蹈比赛 | H171: 省部级 | I171: 女子C六人规定套路 | J171: 第一名
A172: 167 | B172: 陈乐蓓 | C172: 2021211051 | D172: 研 | E172: 安全与海洋工程学院 | F172: 安全科学与工程2021级
A173: 168 | B173: 王嘉曼 | C173: 2023211367 | D173: 研 | E173: 理学院 | F173: 化学工程与技术2023级
A174: 169 | B174: 马梦琪 | C174: 2022310132 | D174: 研 | E174: 石油工程学院 | F174: 石油与天然气工程2022级
A175: 170 | B175: 李玉培 | C175: 2023215568 | D175: 研 | E175: 机械与储运工程学院 | F175: 石油与天然气工程2023级
A176: 171 | B176: 温睿阳 | C176: 2021012052 | D176: 本 | E176: 经济管理学院 | F176: 财务管理2021级 | H176: 省部级 | I176: 女子R六人规定套路 | J176: 第二名
A177: 172 | B177: 刘姝羽 | C177: 2020210649 | D177: 研 | E177: 化学工程与环境学院 | F177: 环境科学与工程2020级
A178: 173 | B178: 陈乐蓓 | C178: 2021211051 | D178: 研 | E178: 安全与海洋工程学院 | F178: 安全科学与工程2021级
A179: 174 | B179: 王嘉曼 | C179: 2023211367 | D179: 研 | E179: 理学院 | F179: 化学工程与技术2023级
A180: 175 | B180: 马梦琪 | C180: 2022310132 | D180: 研 | E180: 石油工程学院 | F180: 石油与天然气工程2022级
A181: 176 | B181: 李玉培 | C181: 2023215568 | D181: 研 | E181: 机械与储运工程学院 | F181: 石油与天然气工程2023级
A182: 177 | B182: 温睿阳 | C182: 2021012052 | D182: 本 | E182: 经济管理学院 | F182: 财务管理2021级 | H182: 省部级 | I182: 女子J六人规定套路 | J182: 第一名
A183: 178 | B183: 刘姝羽 | C183: 2020210649 | D183: 研 | E183: 化学工程与环境学院 | F183: 环境科学与工程2020级
A184: 179 | B184: 陈乐蓓 | C184: 2021211051 | D184: 研 | E184: 安全与海洋工程学院 | F184: 安全科学与工程2021级
A185: 180 | B185: 王嘉曼 | C185: 2023211367 | D185: 研 | E185: 理学院 | F185: 化学工程与技术2023级
A186: 181 | B186: 马梦琪 | C186: 2022310132 | D186: 研 | E186: 石油工程学院 | F186: 石油与天然气工程2022级
A187: 182 | B187: 李玉培 | C187: 2023215568 | D187: 研 | E187: 机械与储运工程学院 | F187: 石油与天然气工程2023级
A188: 183 | B188: 温睿阳 | C188: 2021012052 | D188: 本 | E188: 经济管理学院 | F188: 财务管理2021级 | H188: 省部级 | I188: 女子S六人规定套路 | J188: 第一名
A189: 184 | B189: 刘姝羽 | C189: 2020210649 | D189: 研 | E189: 化学工程与环境学院 | F189: 环境科学与工程2020级
A190: 185 | B190: 陈乐蓓 | C190: 2021211051 | D190: 研 | E190: 安全与海洋工程学院 | F190: 安全科学与工程2021级
A191: 186 | B191: 王嘉曼 | C191: 2023211367 | D191: 研 | E191: 理学院 | F191: 化学工程与技术2023级
A192: 187 | B192: 马梦琪 | C192: 2022310132 | D192: 研 | E192: 石油工程学院 | F192: 石油与天然气工程2022级
A193: 188 | B193: 李玉培 | C193: 2023215568 | D193: 研 | E193: 机械与储运工程学院 | F193: 石油与天然气工程2023级
A194: 189 | B194: 温睿阳 | C194: 2021012052 | D194: 本 | E194: 经济管理学院 | F194: 财务管理2021级
A195: 190 | B195: 刘姝羽 | C195: 2020210649 | D195: 研 | E195: 化学工程与环境学院 | F195: 环境科学与工程2020级 | H195: 省部级 | I195: 女子P六人规定套路 | J195: 第二名
A196: 191 | B196: 陈乐蓓 | C196: 2021211051 | D196: 研 | E196: 安全与海洋工程学院 | F196: 安全科学与工程2021级
A197: 192 | B197: 王嘉曼 | C197: 2023211367 | D197: 研 | E197: 理学院 | F197: 化学工程与技术2023级
A198: 193 | B198: 马梦琪 | C198: 2022310132 | D198: 研 | E198: 石油工程学院 | F198: 石油与天然气工程2022级
A199: 194 | B199: 李玉培 | C199: 2023215568 | D199: 研 | E199: 机械与储运工程学院 | F199: 石油与天然气工程2023级
A200: 195 | B200: 温睿阳 | C200: 2021012052 | D200: 本 | E200: 经济管理学院 | F200: 财务管理2021级
A201: 196 | B201: 黄晗纭 | C201: 2022012227 | D201: 本 | E201: 经济管理学院 | F201: 财务管理2022级 | H201: 省部级 | I201: 女子C六人规定套路 | J201: 第二名
A202: 197 | B202: 张裕敏 | C202: 2021011831 | D202: 本 | E202: 理学院 | F202: 应用化学2021级
... 704 more rows

Sheet 社会实践先进工作者
A1: 序号 | B1: 先进工作者 | C1: 学院 | D1: 团队名称 | E1: 工号
A2: =ROW()-1 -> 1 | B2: 李茂粟 | C2: 安全与海洋工程学院 | D2: 躬身实践启真章 同心共筑南华梦 | E2: =VLOOKUP(B2,[2]Worksheet!$A$1:$I$2172,2,0) -> 2019910015
A3: 2 | B3: 王心贺 | C3: 石油工程学院 | D3: “求取闽宁致富经，共绘西北能源梦”社会实践团 | E3: =VLOOKUP(B3,[2]Worksheet!$A$1:$I$2172,2,0) -> 2021911004
A4: 3 | B4: 何洁玉 | C4: 理学院 | D4: “西油记”——全面读懂中国式现代化实践团 | E4: =VLOOKUP(B4,[2]Worksheet!$A$1:$I$2172,2,0) -> 2022911014
A5: 4 | B5: 邵炜涛 | C5: 机械与储运工程学院 | D5: “践行复信精神 打造红旅IP——‘一带一路’产教融合助力乡村振兴”实践团 | E5: 2021210758
A6: 5 | B6: 李杰 | C6: 石油工程学院 | D6: 多维助力乡村振兴，绘就太行山水名城 | E6: 2020880010
A7: 6 | B7: 金玮 | C7: 新能源与材料学院 | D7: 科技助力乡村振兴，打造绿色能源小镇 | E7: =VLOOKUP(B7,[2]Worksheet!$A$1:$I$2172,2,0) -> 2022911011
A8: 7 | B8: 肖亚楠 | C8: 石油工程学院 | D8: “七秩展风华”感悟石油初心，“三年两回信”激发报国之志 | E8: =VLOOKUP(B8,[2]Worksheet!$A$1:$I$2172,2,0) -> 2018880007
A9: 8 | B9: 马子儒 | C9: 经济管理学院 | D9: 经世碳寻-沿习之路 聚青之力 | E9: =VLOOKUP(B9,[2]Worksheet!$A$1:$I$2172,2,0) -> 2021911013
A10: 9 | B10: 钟嘉雯 | C10: 地球物理学院 | D10: 同心燃梦·青驻南华 | E10: =VLOOKUP(B10,[2]Worksheet!$A$1:$I$2172,2,0) -> 2023911006
A11: 10 | B11: 刘衡升 | C11: 石油工程学院 | D11: 讲好老区故事，助力林城振兴（七秩石子助湘行实践团修改后项目名） | E11: =VLOOKUP(B11,[2]Worksheet!$A$1:$I$2172,2,0) -> 2022880046
A12: 11 | B12: 王伟 | C12: 石油工程学院 | D12: 推普助力振兴梦 七彩少年向未来 | E12: =VLOOKUP(B12,[2]Worksheet!$A$1:$I$2172,2,0) -> 2016880025
A13: 12 | B13: 梁硕 | C13: 化学工程与环境学院 | D13: “烽火青春 红梦引航”红色实践团 | E13: =VLOOKUP(B13,[2]Worksheet!$A$1:$I$2172,2,0) -> 2022880047
A14: 13 | B14: 孟笑 | C14: 地球科学学院 | D14: 大地之光·圆梦——沐光留守，护航成长 | E14: =VLOOKUP(B14,[2]Worksheet!$A$1:$I$2172,2,0) -> 2022911001
A15: 14 | B15: 王思聪 | C15: 地球科学学院 | D15: 大地之光·圆梦——疆油心声 | E15: =VLOOKUP(B15,[2]Worksheet!$A$1:$I$2172,2,0) -> 2021911002
A16: 15 | B16: 刘东东 | C16: 石油工程学院 | D16: 青筑能源山海，童绘梦之江淮 | E16: =VLOOKUP(B16,[2]Worksheet!$A$1:$I$2172,2,0) -> 2013880017
A17: 16 | B17: 刘思辰 | C17: 石油工程学院 | D17: 全国一堂课 | E17: =VLOOKUP(B17,[2]Worksheet!$A$1:$I$2172,2,0) -> 2022911003
A18: 17 | B18: 张明明 | C18: 马克思主义学院 | D18: 青年文化与亚文化调查研究 | E18: =VLOOKUP(B18,[2]Worksheet!$A$1:$I$2172,2,0) -> 2014880044
A19: 18 | B19: 李季龙 | C19: 石油工程学院 | D19: 助双碳能源强国，迎校庆七十华诞 | E19: =VLOOKUP(B19,[2]Worksheet!$A$1:$I$2172,2,0) -> 2022911004
A20: 19 | B20: 王文杰 | C20: 机械与储运工程学院 | D20: 油子“E+”实践团 | E20: =VLOOKUP(B20,[2]Worksheet!$A$1:$I$2172,2,0) -> 2020911009
A21: 20 | B21: 曹洋涛 | C21: 石油工程学院 | D21: “铁人先锋”实践团 | E21: =VLOOKUP(B21,[2]Worksheet!$A$1:$I$2172,2,0) -> 2021911003
A22: 21 | B22: 杨冀宁 | C22: 地球科学学院 | D22: 大地之光·圆梦——绘声绘色，揭秘地球 | E22: =VLOOKUP(B22,[2]Worksheet!$A$1:$I$2172,2,0) -> 2020911003
A23: 22 | B23: 冯永存 | C23: 石油工程学院 | D23: 传承百载颂铁人 | E23: =VLOOKUP(B23,[2]Worksheet!$A$1:$I$2172,2,0) -> 2019880011
A24: 23 | B24: 方百会 | C24: 安全与海洋工程学院 | D24: “向海图强，重温红色初心”实践团 | E24: =VLOOKUP(B24,[2]Worksheet!$A$1:$I$2172,2,0) -> 2015880031
A25: 24 | B25: 殷迪 | C25: 机械与储运工程学院 | D25: 京琼一线，依托自贸港，打造琼魂传承“5W平台” | E25: =VLOOKUP(B25,[2]Worksheet!$A$1:$I$2172,2,0) -> 2022911008
A26: 25 | B26: 纪爽 | C26: 经济管理学院 | D26: 低碳权益，惠及你我——碳普惠的中国全景与北京市考察调研 | E26: =VLOOKUP(B26,[2]Worksheet!$A$1:$I$2172,2,0) -> 2017880018

Sheet 社会实践优秀个人
A1: 序号 | B1: 学院 | C1: 团队名称 | D1: 姓名 | E1: 学号
A2: =ROW()-1 -> 1 | B2: 地球科学学院 | C2: 大地之光·圆梦——“豫”见美丽周口，助力乡村振兴 | D2: 杨荣彬 | E2: =VLOOKUP(D2,[3]学生信息_20231227103344!$A$1:$L$55560,3,0) -> 2021010152
A3: 2 | B3: 地球科学学院 | C3: 大地之光·圆梦——疆油心声 | D3: 姜雨彤 | E3: =VLOOKUP(D3,[3]学生信息_20231227103344!$A$1:$L$55560,3,0) -> 2021010037
A4: 3 | B4: 地球科学学院 | C4: 大地之光·圆梦——赴“云岭之南”打造己衣旅游胜地带动乡村振兴 | D4: 段雨杨 | E4: =VLOOKUP(D4,[3]学生信息_20231227103344!$A$1:$L$55560,3,0) -> 2022010039
A5: 4 | B5: 地球科学学院 | C5: 大地之光·丰碑——党员寻访 | D5: 戴昀珊 | E5: =VLOOKUP(D5,[3]学生信息_20231227103344!$A$1:$L$55560,3,0) -> 2021010130
A6: 5 | B6: 地球科学学院 | C6: 大地之光·圆梦——疆油心声 | D6: 冯钰森 | E6: =VLOOKUP(D6,[3]学生信息_20231227103344!$A$1:$L$55560,3,0) -> 2021010051
A7: 6 | B7: 地球科学学院 | C7: 大地之光·圆梦——沐光留守，护航成长 | D7: 黎飞凡 | E7: =VLOOKUP(D7,[3]学生信息_20231227103344!$A$1:$L$55560,3,0) -> 2020010162
A8: 7 | B8: 地球科学学院 | C8: 大地之光·丰碑——扬红色石油精神，谱七秩芳华新篇 | D8: 喻鑫 | E8: =VLOOKUP(D8,[3]学生信息_20231227103344!$A$1:$L$55560,3,0) -> 2021010161
A9: 8 | B9: 地球科学学院 | C9: 大地之光·丰碑——逐梦深蓝，深蓝筑梦 | D9: 闫浩霖 | E9: =VLOOKUP(D9,[3]学生信息_20231227103344!$A$1:$L$55560,3,0) -> 2022210120
A10: 9 | B10: 地球科学学院 | C10: 大地之光·圆梦——绘声绘色，揭秘地球 | D10: 李娜 | E10: =VLOOKUP(D10,[3]学生信息_20231227103344!$A$1:$L$55560,3,0) -> 2018215039
A11: 10 | B11: 地球科学学院 | C11: 大地之光·溯源——重走红色足迹，赓续精神血脉 | D11: 董洪赫 | E11: =VLOOKUP(D11,[3]学生信息_20231227103344!$A$1:$L$55560,3,0) -> 2021010086
A12: 11 | B12: 地球科学学院 | C12: 大地之光·初心-重走革命道路，感悟红色血脉 | D12: 蒲京 | E12: =VLOOKUP(D12,[3]学生信息_20231227103344!$A$1:$L$55560,3,0) -> 2021010137
A13: 12 | B13: 地球科学学院 | C13: 大地之光·圆梦——“豫”见美丽周口，助力乡村振兴 | D13: 徐瑞阳 | E13: =VLOOKUP(D13,[3]学生信息_20231227103344!$A$1:$L$55560,3,0) -> 2022010003
A14: 13 | B14: 地球科学学院 | C14: 大地之光·圆梦——赴“云岭之南”打造己衣旅游胜地带动乡村振兴 | D14: 卢金浩 | E14: =VLOOKUP(D14,[3]学生信息_20231227103344!$A$1:$L$55560,3,0) -> 2021010134
A15: 14 | B15: 石油工程学院 | C15: “石”志不渝志愿服务队 | D15: 胥涛 | E15: =VLOOKUP(D15,[3]学生信息_20231227103344!$A$1:$L$55560,3,0) -> 2022210295
A16: 15 | B16: 石油工程学院 | C16: 青筑能源山海，童绘梦之江淮 | D16: 吴嘉庚 | E16: =VLOOKUP(D16,[3]学生信息_20231227103344!$A$1:$L$55560,3,0) -> 2022210341
A17: 16 | B17: 石油工程学院 | C17: 多维助力乡村振兴，绘就太行山水名城 | D17: 蔡玎宁 | E17: 2021310109
A18: 17 | B18: 石油工程学院 | C18: 求取闽宁致富经，共绘西北能源梦 | D18: 李彦霈 | E18: =VLOOKUP(D18,[3]学生信息_20231227103344!$A$1:$L$55560,3,0) -> 2021010298
A19: 18 | B19: 石油工程学院 | C19: 青春之姿砥砺太行山水，铁人精神助力革命老区 | D19: 王连国 | E19: =VLOOKUP(D19,[3]学生信息_20231227103344!$A$1:$L$55560,3,0) -> 2017010249
A20: 19 | B20: 石油工程学院 | C20: 讲好老区故事，助力林城振兴（原青学红色三湘行，助力乡村新时代） | D20: 徐正强 | E20: =VLOOKUP(D20,[3]学生信息_20231227103344!$A$1:$L$55560,3,0) -> 2020011269
A21: 20 | B21: 石油工程学院 | C21: 竹西佳处学“习”二十大精神，淮左名都重温总书记足迹 | D21: 赵万里 | E21: =VLOOKUP(D21,[3]学生信息_20231227103344!$A$1:$L$55560,3,0) -> 2017011454
A22: 21 | B22: 石油工程学院 | C22: “油Young青年”志愿服务团队 | D22: 邓联林 | E22: =VLOOKUP(D22,[3]学生信息_20231227103344!$A$1:$L$55560,3,0) -> 2015010992
A23: 22 | B23: 石油工程学院 | C23: 深入探访石油之城 传承百年铁人精神 | D23: 马晟哲 | E23: =VLOOKUP(D23,[3]学生信息_20231227103344!$A$1:$L$55560,3,0) -> 2022010242
A24: 23 | B24: 石油工程学院 | C24: 助双碳能源强国，迎校庆七十华诞 | D24: 杨佳奇 | E24: =VLOOKUP(D24,[3]学生信息_20231227103344!$A$1:$L$55560,3,0) -> 2014010245
A25: 24 | B25: 石油工程学院 | C25: 全国一堂课 | D25: 金家成 | E25: 2023215182
A26: 25 | B26: 石油工程学院 | C26: 石油科普进校园，点燃少年能源梦 | D26: 岳震铎 | E26: =VLOOKUP(D26,[3]学生信息_20231227103344!$A$1:$L$55560,3,0) -> 2022210260
A27: 26 | B27: 石油工程学院 | C27: “七秩展风华”感悟石油初心，“三年两回信”激发报国之志 | D27: 张安迪 | E27: =VLOOKUP(D27,[3]学生信息_20231227103344!$A$1:$L$55560,3,0) -> 2021010217
A28: 27 | B28: 石油工程学院 | C28: 踏寻石油工业足迹，赓续铁人精神血脉 | D28: 童建祥 | E28: =VLOOKUP(D28,[3]学生信息_20231227103344!$A$1:$L$55560,3,0) -> 2022210266
A29: 28 | B29: 石油工程学院 | C29: 以燎原星火，助乡村振兴 | D29: 潘泉羽 | E29: 2022310105
A30: 29 | B30: 石油工程学院 | C30: 传承百载颂铁人 | D30: 施越棋 | E30: =VLOOKUP(D30,[3]学生信息_20231227103344!$A$1:$L$55560,3,0) -> 2021010202
A31: 30 | B31: 石油工程学院 | C31: 智能科普赋能社区托管与假期营地的调研 | D31: 吴爽 | E31: =VLOOKUP(D31,[3]学生信息_20231227103344!$A$1:$L$55560,3,0) -> 2021012075
A32: 31 | B32: 石油工程学院 | C32: 自然·生态·双碳 | D32: 邓欣怡 | E32: =VLOOKUP(D32,[3]学生信息_20231227103344!$A$1:$L$55560,3,0) -> 2022010308
A33: 32 | B33: 石油工程学院 | C33: 七秩芳华，百岁铁人 | D33: 刘思羽 | E33: =VLOOKUP(D33,[3]学生信息_20231227103344!$A$1:$L$55560,3,0) -> 2022010249
A34: 33 | B34: 石油工程学院 | C34: 青筑能源梦，共步石油行 | D34: 张家麟 | E34: =VLOOKUP(D34,[3]学生信息_20231227103344!$A$1:$L$55560,3,0) -> 2018010373
A35: 34 | B35: 石油工程学院 | C35: 新时代·织梦乡村实践团 | D35: 何仕俊 | E35: =VLOOKUP(D35,[3]学生信息_20231227103344!$A$1:$L$55560,3,0) -> 2022010238
A36: 35 | B36: 石油工程学院 | C36: 碳驱油实践队 | D36: 朱远 | E36: =VLOOKUP(D36,[3]学生信息_20231227103344!$A$1:$L$55560,3,0) -> 2022210350
A37: 36 | B37: 石油工程学院 | C37: 油气地质力学与工程暑期社会实践团队 | D37: 毛渝 | E37: 2021310106
A38: 37 | B38: 石油工程学院 | C38: 青学新思想-铭记历史缅怀先烈珍爱和平开创未来 | D38: 刁其岳 | E38: =VLOOKUP(D38,[3]学生信息_20231227103344!$A$1:$L$55560,3,0) -> 2017010737
A39: 38 | B39: 石油工程学院 | C39: 油气井力学与控制工程第三党支部社会实践团队 | D39: 董浩 | E39: =VLOOKUP(D39,[3]学生信息_20231227103344!$A$1:$L$55560,3,0) -> 2017011403
A40: 39 | B40: 石油工程学院 | C40: 井筒安全与控制党支部社会实践团队 | D40: 郭少坤 | E40: =VLOOKUP(D40,[3]学生信息_20231227103344!$A$1:$L$55560,3,0) -> 2022210282
A41: 40 | B41: 化学工程与环境学院 | C41: 青春石子担使命，数字赋能助“鱼”农 | D41: 贺婕 | E41: =VLOOKUP(D41,[3]学生信息_20231227103344!$A$1:$L$55560,3,0) -> 2022010431
A42: 41 | B42: 化学工程与环境学院 | C42: 领悟红船精神，践行两山理论 | D42: 朱金铸 | E42: =VLOOKUP(D42,[3]学生信息_20231227103344!$A$1:$L$55560,3,0) -> 2022210502
A43: 42 | B43: 化学工程与环境学院 | C43: 承千秋五禽戏文化，续百载古井贡酒香 | D43: 鹿麒麟 | E43: =VLOOKUP(D43,[3]学生信息_20231227103344!$A$1:$L$55560,3,0) -> 2021010486
A44: 43 | B44: 化学工程与环境学院 | C44: 守护候鸟七彩筑梦 | D44: 张梦涵 | E44: =VLOOKUP(D44,[3]学生信息_20231227103344!$A$1:$L$55560,3,0) -> 2021010408
A45: 44 | B45: 化学工程与环境学院 | C45: 扶贫南华显真情，支教路上并肩行 | D45: 张润霞 | E45: =VLOOKUP(D45,[3]学生信息_20231227103344!$A$1:$L$55560,3,0) -> 2022010470
A46: 45 | B46: 化学工程与环境学院 | C46: “3+1”模式下助力新农村振兴 | D46: 汪尹 | E46: =VLOOKUP(D46,[3]学生信息_20231227103344!$A$1:$L$55560,3,0) -> 2021010634
A47: 46 | B47: 化学工程与环境学院 | C47: 千年夙愿今梦圆，传统文化谱新篇 | D47: 张帅 | E47: =VLOOKUP(D47,[3]学生信息_20231227103344!$A$1:$L$55560,3,0) -> 2017316018
A48: 47 | B48: 化学工程与环境学院 | C48: 石子返乡寻味，美食助力振兴 | D48: 王晴宇 | E48: =VLOOKUP(D48,[3]学生信息_20231227103344!$A$1:$L$55560,3,0) -> 2022010373
A49: 48 | B49: 化学工程与环境学院 | C49: 广西水果产业与乡村振兴问题的调查研究 | D49: 施孔君 | E49: =VLOOKUP(D49,[3]学生信息_20231227103344!$A$1:$L$55560,3,0) -> 2022010481
A50: 49 | B50: 化学工程与环境学院 | C50: 驰骋未来的新能源汽车——基于用户的现有认知作出的预测与宣传 | D50: 黄镜 | E50: =VLOOKUP(D50,[3]学生信息_20231227103344!$A$1:$L$55560,3,0) -> 2021010494
A51: 50 | B51: 化学工程与环境学院 | C51: 关于城市资源利用现况研究 | D51: 肖涵芮 | E51: =VLOOKUP(D51,[3]学生信息_20231227103344!$A$1:$L$55560,3,0) -> 2022010584
A52: 51 | B52: 机械与储运工程学院 | C52: 五载弦歌擎爱构图“贵州缩影” ，千里筑梦用心共绘“七彩假期” | D52: 张孝全 | E52: =VLOOKUP(D52,[3]学生信息_20231227103344!$A$1:$L$55560,3,0) -> 2022010877
A53: 52 | B53: 机械与储运工程学院 | C53: 擦亮全产业特色IP片，打造京北河西走廊 | D53: 庞金龙 | E53: =VLOOKUP(D53,[3]学生信息_20231227103344!$A$1:$L$55560,3,0) -> 2020010852
A54: 53 | B54: 机械与储运工程学院 | C54: 京琼一线，依托自贸港，打造琼魂传承“5W平台” | D54: 伍德霖 | E54: =VLOOKUP(D54,[3]学生信息_20231227103344!$A$1:$L$55560,3,0) -> 2021010909
A55: 54 | B55: 机械与储运工程学院 | C55: 青春之行共筑草原长城，马鞍精神唱响致富赞歌 | D55: 包雅睿 | E55: =VLOOKUP(D55,[3]学生信息_20231227103344!$A$1:$L$55560,3,0) -> 2022010671
A56: 55 | B56: 机械与储运工程学院 | C56: 千里筑梦用心共绘“七彩假期” | D56: 陈馨羽 | E56: =VLOOKUP(D56,[3]学生信息_20231227103344!$A$1:$L$55560,3,0) -> 2022010766
A57: 56 | B57: 机械与储运工程学院 | C57: 北疆云果同心，美丽乡村同梦，振兴发展同行 | D57: 丁英蕙 | E57: =VLOOKUP(D57,[3]学生信息_20231227103344!$A$1:$L$55560,3,0) -> 2021010944
A58: 57 | B58: 机械与储运工程学院 | C58: 青春之行共筑草原长城，马鞍精神唱响致富赞歌 | D58: 付明林 | E58: =VLOOKUP(D58,[3]学生信息_20231227103344!$A$1:$L$55560,3,0) -> 2021480018
A59: 58 | B59: 机械与储运工程学院 | C59: 七秩鹏程今续华章一打造“西气东输”校友管网 | D59: 何文博 | E59: =VLOOKUP(D59,[3]学生信息_20231227103344!$A$1:$L$55560,3,0) -> 2022010692
A60: 59 | B60: 机械与储运工程学院 | C60: 爱心帮扶我先行，固本强基当先锋 | D60: 张健宇 | E60: =VLOOKUP(D60,[3]学生信息_20231227103344!$A$1:$L$55560,3,0) -> 2020010978
A61: 60 | B61: 机械与储运工程学院 | C61: 五载弦歌擎爱构图“贵州缩影” ，千里筑梦用心共绘“七彩假期” | D61: 邢开源 | E61: =VLOOKUP(D61,[3]学生信息_20231227103344!$A$1:$L$55560,3,0) -> 2021010898
A62: 61 | B62: 机械与储运工程学院 | C62: 以点带面，景点带动乡村振兴与发展 | D62: 燕泽明 | E62: =VLOOKUP(D62,[3]学生信息_20231227103344!$A$1:$L$55560,3,0) -> 2021010660
A63: 62 | B63: 机械与储运工程学院 | C63: “青”情为民践行使命初心，扎根高原谱写雪域华章 | D63: 陈宣衡 | E63: =VLOOKUP(D63,[3]学生信息_20231227103344!$A$1:$L$55560,3,0) -> 2021010670
A64: 63 | B64: 机械与储运工程学院 | C64: 京琼一线，依托自贸港，打造琼魂传承“5W平台” | D64: 苏展 | E64: =VLOOKUP(D64,[3]学生信息_20231227103344!$A$1:$L$55560,3,0) -> 2021010939
A65: 64 | B65: 机械与储运工程学院 | C65: 擦亮全产业特色IP片，打造京北河西走廊 | D65: 殷迪 | E65: =VLOOKUP(D65,[3]学生信息_20231227103344!$A$1:$L$55560,3,0) -> 2018010811
A66: =ROW()-1 -> 65 | B66: 机械与储运工程学院 | C66: 青春之行共筑草原长城，马鞍精神唱响致富赞歌 | D66: 王文超 | E66: =VLOOKUP(D66,[3]学生信息_20231227103344!$A$1:$L$55560,3,0) -> 2018010719
A67: 66 | B67: 机械与储运工程学院 | C67: 京琼一线，依托自贸港，打造琼魂传承“5W平台” | D67: 于小芊 | E67: =VLOOKUP(D67,[3]学生信息_20231227103344!$A$1:$L$55560,3,0) -> 2021010656
A68: 67 | B68: 地球物理学院 | C68: 同心燃梦.青驻南华 | D68: 吴晓玥 | E68: =VLOOKUP(D68,[3]学生信息_20231227103344!$A$1:$L$55560,3,0) -> 2021011128
A69: 68 | B69: 地球物理学院 | C69: 同心燃梦·青驻南华 | D69: 崔文华 | E69: =VLOOKUP(D69,[3]学生信息_20231227103344!$A$1:$L$55560,3,0) -> 2021011146
A70: 69 | B70: 地球物理学院 | C70: 石子筑梦，行疆致远 | D70: 陆雨辰 | E70: =VLOOKUP(D70,[3]学生信息_20231227103344!$A$1:$L$55560,3,0) -> 2021011034
A71: 70 | B71: 地球物理学院 | C71: 西北地区高中教育现状调研及对策研究——以宁夏西吉县为例 | D71: 马野 | E71: =VLOOKUP(D71,[3]学生信息_20231227103344!$A$1:$L$55560,3,0) -> 2022011071
A72: 71 | B72: 安全与海洋工程学院 | C72: 燃灯晓吟·普通话风华 | D72: 刘帅 | E72: =VLOOKUP(D72,[3]学生信息_20231227103344!$A$1:$L$55560,3,0) -> 2017011867
A73: 72 | B73: 安全与海洋工程学院 | C73: 普通话之韵：沟通无界，文化同行 | D73: 徐帆 | E73: =VLOOKUP(D73,[3]学生信息_20231227103344!$A$1:$L$55560,3,0) -> 2018210918
A74: 73 | B74: 安全与海洋工程学院 | C74: 聚力二十大，推普助乡村 | D74: 张钰豪 | E74: =VLOOKUP(D74,[3]学生信息_20231227103344!$A$1:$L$55560,3,0) -> 2022011165
A75: 74 | B75: 安全与海洋工程学院 | C75: 赓续红色血脉，砥砺奋进力量 | D75: 刘乐睿 | E75: =VLOOKUP(D75,[3]学生信息_20231227103344!$A$1:$L$55560,3,0) -> 2022011157
A76: 75 | B76: 安全与海洋工程学院 | C76: 躬身实践启真章 同心共筑南华梦 | D76: 周炜超 | E76: =VLOOKUP(D76,[3]学生信息_20231227103344!$A$1:$L$55560,3,0) -> 2021011203
A77: 76 | B77: 安全与海洋工程学院 | C77: 躬身实践启真章 同心共筑南华梦 | D77: 董家延 | E77: =VLOOKUP(D77,[3]学生信息_20231227103344!$A$1:$L$55560,3,0) -> 2021011208
A78: 77 | B78: 安全与海洋工程学院 | C78: 躬身实践启真章 同心共筑南华梦 | D78: 张雨涵 | E78: =VLOOKUP(D78,[3]学生信息_20231227103344!$A$1:$L$55560,3,0) -> 2021011195
A79: 78 | B79: 安全与海洋工程学院 | C79: 躬身实践启真章 同心共筑南华梦 | D79: 汪欣晗 | E79: =VLOOKUP(D79,[3]学生信息_20231227103344!$A$1:$L$55560,3,0) -> 2021011192
A80: 79 | B80: 新能源与材料学院 | C80: 科技助力乡村振兴，打造绿色能源小镇 | D80: 张虔嘉 | E80: =VLOOKUP(D80,[3]学生信息_20231227103344!$A$1:$L$55560,3,0) -> 2021011383
A81: 80 | B81: 新能源与材料学院 | C81: 科技助力乡村振兴，打造绿色能源小镇 | D81: 王一杰 | E81: =VLOOKUP(D81,[3]学生信息_20231227103344!$A$1:$L$55560,3,0) -> 2021011397
A82: 81 | B82: 新能源与材料学院 | C82: 科技助力乡村振兴，打造绿色能源小镇 | D82: 郭霁霄 | E82: =VLOOKUP(D82,[3]学生信息_20231227103344!$A$1:$L$55560,3,0) -> 2022012275
A83: 82 | B83: 新能源与材料学院 | C83: 一引擎赋能三动力，振兴路上迎“蜀”光 | D83: 刘新阳 | E83: =VLOOKUP(D83,[3]学生信息_20231227103344!$A$1:$L$55560,3,0) -> 2021011405
A84: 83 | B84: 新能源与材料学院 | C84: 一引擎赋能三动力，振兴路上迎“蜀”光 | D84: 佟潇 | E84: =VLOOKUP(D84,[3]学生信息_20231227103344!$A$1:$L$55560,3,0) -> 2021011493
A85: 84 | B85: 新能源与材料学院 | C85: 一引擎赋能三动力，振兴路上迎“蜀”光 | D85: 李启航 | E85: =VLOOKUP(D85,[3]学生信息_20231227103344!$A$1:$L$55560,3,0) -> 2022310134
A86: 85 | B86: 新能源与材料学院 | C86: 石油精神石油魂，七秩芳华守初心 | D86: 苏湘妮 | E86: =VLOOKUP(D86,[3]学生信息_20231227103344!$A$1:$L$55560,3,0) -> 2020011371
A87: 86 | B87: 新能源与材料学院 | C87: 石油精神石油魂，七秩芳华守初心 | D87: 张田慧 | E87: =VLOOKUP(D87,[3]学生信息_20231227103344!$A$1:$L$55560,3,0) -> 2021011408
A88: 87 | B88: 新能源与材料学院 | C88: 让红色曙光在田埂上跳跃 | D88: 李傲冰 | E88: =VLOOKUP(D88,[3]学生信息_20231227103344!$A$1:$L$55560,3,0) -> 2022011326
A89: 88 | B89: 新能源与材料学院 | C89: 七秩芳华，绿动未来 | D89: 侯霁洋 | E89: =VLOOKUP(D89,[3]学生信息_20231227103344!$A$1:$L$55560,3,0) -> 2021011446
A90: 89 | B90: 新能源与材料学院 | C90: 值七秩芳华，书能源篇章 | D90: 殷亚丽 | E90: =VLOOKUP(D90,[3]学生信息_20231227103344!$A$1:$L$55560,3,0) -> 2021011332
A91: 90 | B91: 新能源与材料学院 | C91: 洞见扶贫实践团队 | D91: 曾睎 | E91: =VLOOKUP(D91,[3]学生信息_20231227103344!$A$1:$L$55560,3,0) -> 2022011399
A92: 91 | B92: 新能源与材料学院 | C92: 渡江战役历史实践团 | D92: 马梓宸 | E92: =VLOOKUP(D92,[3]学生信息_20231227103344!$A$1:$L$55560,3,0) -> 2022011416
A93: 92 | B93: 新能源与材料学院 | C93: “双碳”行动，事关你我他 | D93: 李成程 | E93: =VLOOKUP(D93,[3]学生信息_20231227103344!$A$1:$L$55560,3,0) -> 2022011456
A94: 93 | B94: 信息科学与工程学院 | C94: 同心共赴石光行，芳华献礼七秩彩 | D94: 于世隆 | E94: =VLOOKUP(D94,[3]学生信息_20231227103344!$A$1:$L$55560,3,0) -> 2021011699
A95: 94 | B95: 信息科学与工程学院 | C95: “连线濯水·信火相传”暑期支教团 | D95: 任珈锐 | E95: =VLOOKUP(D95,[3]学生信息_20231227103344!$A$1:$L$55560,3,0) -> 2022011591
A96: 95 | B96: 信息科学与工程学院 | C96: 以史为鉴 信火燎原 ——井冈情·中国梦”专项实践 | D96: 李媛 | E96: =VLOOKUP(D96,[3]学生信息_20231227103344!$A$1:$L$55560,3,0) -> 2020011582
A97: 96 | B97: 信息科学与工程学院 | C97: 关注民生，共建和谐社区 | D97: 杨逸萱 | E97: =VLOOKUP(D97,[3]学生信息_20231227103344!$A$1:$L$55560,3,0) -> 2018011133
A98: 97 | B98: 信息科学与工程学院 | C98: “两弹一星”精神核星闪耀志愿宣讲团 | D98: 聂怡婕 | E98: =VLOOKUP(D98,[3]学生信息_20231227103344!$A$1:$L$55560,3,0) -> 2022011614
A99: 98 | B99: 信息科学与工程学院 | C99: “连线濯水，信火相传”暑期支教团 | D99: 王毅松 | E99: =VLOOKUP(D99,[3]学生信息_20231227103344!$A$1:$L$55560,3,0) -> 2022011717
A100: 99 | B100: 信息科学与工程学院 | C100: 以史为鉴 信火燎原 ——井冈情·中国梦”专项实践 | D100: 郭欣悦 | E100: =VLOOKUP(D100,[3]学生信息_20231227103344!$A$1:$L$55560,3,0) -> 2022011711
A101: 100 | B101: 信息科学与工程学院 | C101: 同心共赴石光行，芳华献礼七秩彩 | D101: 于川 | E101: =VLOOKUP(D101,[3]学生信息_20231227103344!$A$1:$L$55560,3,0) -> 2021215301
A102: 101 | B102: 信息科学与工程学院 | C102: 同心共赴石光行，芳华献礼七秩彩 | D102: 车春丽 | E102: =VLOOKUP(D102,[3]学生信息_20231227103344!$A$1:$L$55560,3,0) -> 2021011690
A103: 102 | B103: 信息科学与工程学院 | C103: 同心共赴“石”光行，芳华献礼七秩彩“ 两弹一星”精神核星闪耀志愿宣讲团 | D103: 于茗旭 | E103: =VLOOKUP(D103,[3]学生信息_20231227103344!$A$1:$L$55560,3,0) -> 2022011721
A104: 103 | B104: 信息科学与工程学院 | C104: “连线濯水·信火相传”暑期支教团 | D104: 王旭冉 | E104: =VLOOKUP(D104,[3]学生信息_20231227103344!$A$1:$L$55560,3,0) -> 2022011555
A105: 104 | B105: 理学院 | C105: 学思想、品内涵、践初心，全面读懂中国式现代化——基于中外学生赴陕西省的实践调研 | D105: 董双琦 | E105: =VLOOKUP(D105,[3]学生信息_20231227103344!$A$1:$L$55560,3,0) -> 2020011878
A106: 105 | B106: 理学院 | C106: 学思想、品内涵、践初心，全面读懂中国式现代化——基于中外学生赴陕西省的实践调研 | D106: 曹可滢 | E106: =VLOOKUP(D106,[3]学生信息_20231227103344!$A$1:$L$55560,3,0) -> 2020011804
A107: 106 | B107: 理学院 | C107: “油”忆铁人路 | D107: 雷子儒 | E107: =VLOOKUP(D107,[3]学生信息_20231227103344!$A$1:$L$55560,3,0) -> 2020011858
A108: 107 | B108: 理学院 | C108: “油”忆铁人路 | D108: 付楷涵 | E108: =VLOOKUP(D108,[3]学生信息_20231227103344!$A$1:$L$55560,3,0) -> 2018011780
A109: 108 | B109: 理学院 | C109: “油”忆铁人路 | D109: 魏凯旋 | E109: =VLOOKUP(D109,[3]学生信息_20231227103344!$A$1:$L$55560,3,0) -> 2018011734
A110: 109 | B110: 理学院 | C110: 奋进新征程，锻铸石油魂 | D110: 向卿谊 | E110: =VLOOKUP(D110,[3]学生信息_20231227103344!$A$1:$L$55560,3,0) -> 2018011735
A111: 110 | B111: 理学院 | C111: 扎根基层，铸就无悔青春 | D111: 陈启伟 | E111: =VLOOKUP(D111,[3]学生信息_20231227103344!$A$1:$L$55560,3,0) -> 2021011842
A112: 111 | B112: 理学院 | C112: “七秩油缘 湘遇郴州”——中石大学子助力乡村教育发展 | D112: 韩俊雄 | E112: =VLOOKUP(D112,[3]学生信息_20231227103344!$A$1:$L$55560,3,0) -> 2021011805
A113: 112 | B113: 经济管理学院 | C113: 经世碳寻-沿习之路 聚青之力 | D113: 张馨月 | E113: =VLOOKUP(D113,[3]学生信息_20231227103344!$A$1:$L$55560,3,0) -> 2017313034
A114: 113 | B114: 经济管理学院 | C114: 中石大学子吉林行，青春助力乡村振兴 | D114: 艾书池 | E114: =VLOOKUP(D114,[3]学生信息_20231227103344!$A$1:$L$55560,3,0) -> 2022011912
A115: 114 | B115: 经济管理学院 | C115: 低碳权益，惠及你我——碳普惠的中国全景与北京市实地调研 | D115: 刘家庆 | E115: =VLOOKUP(D115,[3]学生信息_20231227103344!$A$1:$L$55560,3,0) -> 2020011965
A116: 115 | B116: 经济管理学院 | C116: 倡议十年行，丝路谱华章 | D116: 唐舞 | E116: =VLOOKUP(D116,[3]学生信息_20231227103344!$A$1:$L$55560,3,0) -> 2022012217
A117: 116 | B117: 经济管理学院 | C117: 微芒成阳 | D117: 王心雨 | E117: =VLOOKUP(D117,[3]学生信息_20231227103344!$A$1:$L$55560,3,0) -> 2019216154
A118: 117 | B118: 经济管理学院 | C118: 深入祖国西部油田，传承大庆铁人精神 | D118: 贾涛 | E118: =VLOOKUP(D118,[3]学生信息_20231227103344!$A$1:$L$55560,3,0) -> 2022011963
A119: 118 | B119: 马克思主义学院 | C119: 产学一体振新乡，青马共建新农村 | D119: 曲家彤 | E119: =VLOOKUP(D119,[3]学生信息_20231227103344!$A$1:$L$55560,3,0) -> 2022012141
A120: 119 | B120: 马克思主义学院 | C120: 产学一体振新乡，青马共建新农村 | D120: 江岚 | E120: =VLOOKUP(D120,[3]学生信息_20231227103344!$A$1:$L$55560,3,0) -> 2022012116
A121: 120 | B121: 马克思主义学院 | C121: 绿意永存，风韵“油”存——关于石油企业实施绿色生产的情况调查 | D121: 肖欣 | E121: =VLOOKUP(D121,[3]学生信息_20231227103344!$A$1:$L$55560,3,0) -> 2022012124
A122: 121 | B122: 马克思主义学院 | C122: 绿意永存，风韵“油”存——关于石油企业实施绿色生产的情况调查 | D122: 张力峥 | E122: =VLOOKUP(D122,[3]学生信息_20231227103344!$A$1:$L$55560,3,0) -> 2022012133
A123: 122 | B123: 马克思主义学院 | C123: 新时代基层乡土文化发展现状调查——基于北京市传统村落的调查研究 | D123: 孙嘉璐 | E123: =VLOOKUP(D123,[3]学生信息_20231227103344!$A$1:$L$55560,3,0) -> 2021012142
A124: 123 | B124: 马克思主义学院 | C124: 北京昌平及周边地区文物古迹保护和利用情况调研 | D124: 李佳宁 | E124: =VLOOKUP(D124,[3]学生信息_20231227103344!$A$1:$L$55560,3,0) -> 2020010898
A125: 124 | B125: 马克思主义学院 | C125: 青年文化与亚文化调查研究 | D125: 钟梦婷 | E125: =VLOOKUP(D125,[3]学生信息_20231227103344!$A$1:$L$55560,3,0) -> 2021012132
A126: 125 | B126: 马克思主义学院 | C126: 青年文化与亚文化调查研究 | D126: 程玉夏冰 | E126: =VLOOKUP(D126,[3]学生信息_20231227103344!$A$1:$L$55560,3,0) -> 2022012140
A127: 126 | B127: 外国语学院 | C127: 心系城郊协同发展，助永乐店乡村振兴 | D127: 张依明 | E127: =VLOOKUP(D127,[3]学生信息_20231227103344!$A$1:$L$55560,3,0) -> 2022012224
A128: 127 | B128: 外国语学院 | C128: 七轶芳华寻校友，携手共进向未来 | D128: 何芳 | E128: =VLOOKUP(D128,[3]学生信息_20231227103344!$A$1:$L$55560,3,0) -> 2021012242
A129: 128 | B129: 外国语学院 | C129: 走基层助振兴 | D129: 卢奕凤 | E129: =VLOOKUP(D129,[3]学生信息_20231227103344!$A$1:$L$55560,3,0) -> 2021012246
A130: =ROW()-1 -> 129 | B130: 外国语学院 | C130: 关于在保水保生态中发挥青年力量的路径探索 | D130: 范其乐 | E130: =VLOOKUP(D130,[3]学生信息_20231227103344!$A$1:$L$55560,3,0) -> 2021012250
A131: 130 | B131: 非常规院 | C131: 绽放芳华，矢志育人 | D131: 王禧文 | E131: =VLOOKUP(D131,[3]学生信息_20231227103344!$A$1:$L$55560,3,0) -> 2021211807
A132: 131 | B132: 校团委 | C132: 盎然七秩，绿“油”心生：绿色发展助力乡村振兴——基于南华县县域的调研与实践 | D132: 任泽鹏 | E132: =VLOOKUP(D132,[3]学生信息_20231227103344!$A$1:$L$55560,3,0) -> 2021011811
A133: 132 | B133: 校团委 | C133: 盎然七秩，绿“油”心生：绿色发展助力乡村振兴——基于南华县县域的调研与实践 | D133: 亓宸玥 | E133: =VLOOKUP(D133,[3]学生信息_20231227103344!$A$1:$L$55560,3,0) -> 2022012151
A134: 133 | B134: 校团委 | C134: 盎然七秩，绿“油”心生：绿色发展助力乡村振兴——基于南华县县域的调研与实践 | D134: 庞浩宇 | E134: =VLOOKUP(D134,[3]学生信息_20231227103344!$A$1:$L$55560,3,0) -> 2021011819
A135: 134 | B135: 校团委 | C135: 访老兵，颂军魂，铸新时代卫士 | D135: 徐卫星 | E135: =VLOOKUP(D135,[3]学生信息_20231227103344!$A$1:$L$55560,3,0) -> 2021011894
A136: 135 | B136: 校团委 | C136: 访老兵，颂军魂，铸新时代卫士 | D136: 郭文宣 | E136: =VLOOKUP(D136,[3]学生信息_20231227103344!$A$1:$L$55560,3,0) -> 2021011469
A137: 136 | B137: 校团委 | C137: 访老兵，颂军魂，铸新时代卫士 | D137: 俞柯 | E137: =VLOOKUP(D137,[3]学生信息_20231227103344!$A$1:$L$55560,3,0) -> 2022012115
A138: 137 | B138: 校团委 | C138: 践行复信精神 打造红旅IP——“一带一路”产教融合助力乡村振兴 | D138: 陈茜 | E138: 2020010062
A139: 138 | B139: 校团委 | C139: 践行复信精神 打造红旅IP——“一带一路”产教融合助力乡村振兴 | D139: 李晨旭 | E139: =VLOOKUP(D139,[3]学生信息_20231227103344!$A$1:$L$55560,3,0) -> 2020010091
A140: 139 | B140: 校团委 | C140: 践行复信精神 打造红旅IP——“一带一路”产教融合助力乡村振兴 | D140: 罗楚龙 | E140: =VLOOKUP(D140,[3]学生信息_20231227103344!$A$1:$L$55560,3,0) -> 2021010642
A141: 140 | B141: 校团委 | C141: 践行复信精神 打造红旅IP——“一带一路”产教融合助力乡村振兴 | D141: 张清爽 | E141: =VLOOKUP(D141,[3]学生信息_20231227103344!$A$1:$L$55560,3,0) -> 2021010711
A142: 141 | B142: 校团委 | C142: 践行复信精神 打造红旅IP——“一带一路”产教融合助力乡村振兴 | D142: 马泽辉 | E142: 2020010508
A143: 142 | B143: 校团委 | C143: 践行复信精神 打造红旅IP——“一带一路”产教融合助力乡村振兴 | D143: 肖彦希 | E143: =VLOOKUP(D143,[3]学生信息_20231227103344!$A$1:$L$55560,3,0) -> 2020012210
A144: 143 | B144: 校团委 | C144: “乡遇未来”调研团 | D144: 刘立原 | E144: =VLOOKUP(D144,[3]学生信息_20231227103344!$A$1:$L$55560,3,0) -> 2021011478
A145: 144 | B145: 校团委 | C145: “乡遇未来”调研团 | D145: 商雨鑫 | E145: =VLOOKUP(D145,[3]学生信息_20231227103344!$A$1:$L$55560,3,0) -> 2021011471
A146: 145 | B146: 校团委 | C146: “乡遇未来”调研团 | D146: 王天云 | E146: =VLOOKUP(D146,[3]学生信息_20231227103344!$A$1:$L$55560,3,0) -> 2014211015
A147: 146 | B147: 校团委 | C147: 踔厉奋发新征程，追梦南华著华章 | D147: 林楚媛 | E147: =VLOOKUP(D147,[3]学生信息_20231227103344!$A$1:$L$55560,3,0) -> 2021010397
A148: 147 | B148: 校团委 | C148: 踔厉奋发新征程，追梦南华著华章 | D148: 罗嘉骊 | E148: =VLOOKUP(D148,[3]学生信息_20231227103344!$A$1:$L$55560,3,0) -> 2020011981
A149: 148 | B149: 校团委 | C149: 踔厉奋发新征程，追梦南华著华章 | D149: 董芸菲 | E149: =VLOOKUP(D149,[3]学生信息_20231227103344!$A$1:$L$55560,3,0) -> 2020012221
A150: 149 | B150: 校团委 | C150: “圆梦滇南，植根中国优秀传统文化之壤”实践团 | D150: 任正元 | E150: =VLOOKUP(D150,[3]学生信息_20231227103344!$A$1:$L$55560,3,0) -> 2021012060
A151: 150 | B151: 校团委 | C151: 中石大“星核筑梦”实践团 | D151: 盛彤 | E151: =VLOOKUP(D151,[3]学生信息_20231227103344!$A$1:$L$55560,3,0) -> 2021011827

Sheet 社会实践先进个人
A1: 序号 | B1: 所在学院 | C1: 团队名称 | D1: 姓名 | E1: 学号
A2: =ROW()-1 -> 1 | B2: 安全与海洋工程学院 | C2: 躬身实践启真章 同心共筑南华梦 | D2: 李志明 | E2: =VLOOKUP(D2,[3]学生信息_20231227103344!$A$1:$L$55560,3,0) -> 2021011254
A3: 2 | B3: 石油工程学院 | C3: “求取闽宁致富经，共绘西北能源梦”社会实践团 | D3: 周怡辰 | E3: =VLOOKUP(D3,[3]学生信息_20231227103344!$A$1:$L$55560,3,0) -> 2021010287
A4: 3 | B4: 理学院 | C4: “西油记”——全面读懂中国式现代化实践团 | D4: 曹可滢 | E4: =VLOOKUP(D4,[3]学生信息_20231227103344!$A$1:$L$55560,3,0) -> 2020011804
A5: 4 | B5: 理学院 | C5: “践行复信精神 打造红旅IP——‘一带一路’产教融合助力乡村振兴”实践团 | D5: 陈茜 | E5: 2020010062
A6: 5 | B6: 石油工程学院 | C6: 多维助力乡村振兴，绘就太行山水名城 | D6: 林子愉 | E6: =VLOOKUP(D6,[3]学生信息_20231227103344!$A$1:$L$55560,3,0) -> 2017010200
A7: 6 | B7: 新能源与材料学院 | C7: 科技助力乡村振兴，打造绿色能源小镇 | D7: 陈锐 | E7: 2022011360
A8: 7 | B8: 石油工程学院 | C8: “七秩展风华”感悟石油初心，“三年两回信”激发报国之志 | D8: 张安迪 | E8: =VLOOKUP(D8,[3]学生信息_20231227103344!$A$1:$L$55560,3,0) -> 2021010217
A9: 8 | B9: 经济管理学院 | C9: 经世碳寻-沿习之路 聚青之力 | D9: 养文婧 | E9: =VLOOKUP(D9,[3]学生信息_20231227103344!$A$1:$L$55560,3,0) -> 2021011908
A10: 9 | B10: 地球物理学院 | C10: 同心燃梦·青驻南华 | D10: 韩金悦 | E10: =VLOOKUP(D10,[3]学生信息_20231227103344!$A$1:$L$55560,3,0) -> 2021011102
A11: 10 | B11: 石油工程学院 | C11: 讲好老区故事，助力林城振兴（七秩石子助湘行实践团修改后项目名） | D11: 邓鑫 | E11: =VLOOKUP(D11,[3]学生信息_20231227103344!$A$1:$L$55560,3,0) -> 2017211153
A12: 11 | B12: 石油工程学院 | C12: “油Young青年”志愿服务团队 | D12: 管昱棋 | E12: =VLOOKUP(D12,[3]学生信息_20231227103344!$A$1:$L$55560,3,0) -> 2022215139
A13: 12 | B13: 化学工程与环境学院 | C13: “烽火青春 红梦引航”红色实践团 | D13: 朱金铸 | E13: =VLOOKUP(D13,[3]学生信息_20231227103344!$A$1:$L$55560,3,0) -> 2022210502
A14: 13 | B14: 地球科学学院 | C14: 大地之光·圆梦——沐光留守，护航成长 | D14: 袁英博 | E14: =VLOOKUP(D14,[3]学生信息_20231227103344!$A$1:$L$55560,3,0) -> 2020010191
A15: 14 | B15: 地球科学学院 | C15: 大地之光·圆梦——疆油心声 | D15: 姜雨彤 | E15: =VLOOKUP(D15,[3]学生信息_20231227103344!$A$1:$L$55560,3,0) -> 2021010037
A16: 15 | B16: 石油工程学院 | C16: 青筑能源山海，童绘梦之江淮 | D16: 郭雪 | E16: 2023310146
A17: 16 | B17: 石油工程学院 | C17: 全国一堂课 | D17: 田昊 | E17: 2023210245
A18: 17 | B18: 马克思主义学院 | C18: 青年文化与亚文化调查研究 | D18: 钟梦婷 | E18: =VLOOKUP(D18,[3]学生信息_20231227103344!$A$1:$L$55560,3,0) -> 2021012132
A19: 18 | B19: 石油工程学院 | C19: 助双碳能源强国，迎校庆七十华诞 | D19: 杨佳奇 | E19: =VLOOKUP(D19,[3]学生信息_20231227103344!$A$1:$L$55560,3,0) -> 2014010245
A20: 19 | B20: 机械与储运工程学院 | C20: 油子“E+”实践团 | D20: 王文超 | E20: =VLOOKUP(D20,[3]学生信息_20231227103344!$A$1:$L$55560,3,0) -> 2018010719
A21: 20 | B21: 石油工程学院 | C21: “铁人先锋”实践团 | D21: 刘瑞恒 | E21: =VLOOKUP(D21,[3]学生信息_20231227103344!$A$1:$L$55560,3,0) -> 2020010208
